{"text_format":"1","workbook":"xlsx","n_sheets":10,"sheets":["INTRO","COUNTRY_INFO","DEC","ALB_MBD","PZQ","IVM","IVM+","SUMMARY","SHIPMENT","DATA_POLICY"],"not_rendered":{"charts":0,"images":3,"macros":1,"external_links":0,"defined_names":5,"comments":9,"pivot_tables":0},"unopened":[],"bounds":{"document_bytes":16777216,"sheet_cells":100000,"rows_first":2000,"rows_last":500,"rows_between":2000,"halvings":0,"cell_chars":16384,"cell_head_chars":4096},"cells_cut":0,"cells_raw":0,"read":"whole","date_system":"1900"}

{"sheet":"INTRO","index":0,"n_rows":50,"n_cols":5,"rows_kept":50,"cut":false,"hidden":false,"merged":[[7,2,7,4],[11,1,11,4],[4,1,4,4],[10,2,10,4],[20,2,20,4],[17,1,17,4],[13,1,13,4],[18,2,18,4],[8,2,8,4],[9,2,9,4],[19,1,19,4],[12,1,12,4],[16,1,16,4],[14,1,14,4],[15,1,15,4],[0,1,0,4],[2,1,2,4],[1,1,1,4],[5,1,5,4],[3,1,3,4],[21,1,21,4],[46,1,46,4],[38,1,38,2],[40,1,40,2],[42,1,42,2],[44,1,44,2],[36,1,36,2],[22,2,23,4],[25,2,26,4],[27,1,27,4],[32,1,32,2],[29,1,29,4],[30,1,30,4],[28,2,28,4],[24,1,24,4],[34,1,34,2]]}
[]
[null,"Joint request for selected PC medicines v.3.1"]
[]
[null,"As part of global efforts to accelerate expansion of preventive chemotherapy (PC) for control and elimination of lymphatic filariasis, schistosomiasis and soil-transmitted helminthiases, the World Health Organization (WHO) facilitates the supply of albendazole 400 mg tablets (GSK) to national lymphatic filariasis elimination programmes and national soil-transmitted helminth control programmes; diethylcarbamazine citrate 100 mg tablets (Eisai) to national lymphatic filariasis elimination programmes; mebendazole 500 mg tablets (J&J) for national soil-transmitted helminth control programmes; and praziquantel 600 mg tablets (Merck KGaA)  for school-age children to national schistosomiasis control programmes. WHO also collaborates to supply ivermectin 3 mg tablets (Merck) for onchocerciasis and lymphatic filariasis donation programmes.  \nThis Excel-based tool is designed to assist countries in quantifying the number of tablets of relevant PC medicines required to reach the planned target population and districts for the year of request. Output of the tool is a joint request for PC medicines, which can be printed, signed and submitted to WHO to request these medicines."]
[]
[null,"Structure of the application (worksheets):"]
[]
[null,"INTRO","This worksheet includes guides on how to complete the joint request for selected PC medicines and information about the status of PC for endemic diseases in the country."]
[null,"COUNTRY_INFO","This worksheet includes information about administrative structure of the country, population by age group, status of endemicity for each disease, population requiring PC and planned interventions."]
[null,"DEC, ALB_MBD, PZQ and IVM","These worksheets include information about endemic districts targeted for treatment with specified PC medicines, treatment plan, and number of tablets required and requested. "]
[null,"SUMMARY","This worksheet includes summary of number of tablets requested, information about stock, and date for submission of requested medicines. Before generating the report (run macros) please select the medicine for which the report is needed. Follow the same rule to see the number of people to be treated for the specific disease. \nThis worksheet should be printed and submitted as a joint request for selected PC medicines (see the instruction for submission in the SUMMARY worksheet)."]
[]
[null,"Instruction for data entry"]
[]
[null,"Most of the cells in the above-mentioned worksheets include formula that are calculated automatically according to the treatment policy recommended by WHO for each disease.\nSee the link http://www.who.int/neglected_diseases/preventive_chemotherapy/pct_manual/en/index.html"]
[]
[null,"Please enter your data into the cells according to their colour code:"]
[]
[null,null,"White - cell is not protected. Please enter the value of the requested indicator."]
[]
[null,null,"Yellow - cell is protected and includes name of indicator. No data entry required."]
[]
[null,null,"Orange - cell is not protected and includes a drop-down menu. Please select the value from the drop-down list."]
[]
[]
[null,null,"Green - cell is not protected and includes formula. Please change the value only if your data are different from those that are calculated automatically."]
[]
[]
[null,null,"Blue - cell is protected and includes formula. No data entry required."]
[]
[null,"Country data"]
[]
[null,"COUNTRY",null,null,"Zanzibar"]
[]
[null,"Year for request of the medicine",null,null,2023]
[]
[null,"Is country endemic for lymphatic filariasis (LF)?",null,null,"Endemic"]
[]
[null,"Is country endemic for onchocerciasis (ONCHO)?",null,null,"Endemic but PC is not required"]
[]
[null,"Is country endemic for soil-transmitted helminthiases (STH)?",null,null,"Endemic"]
[]
[null,"Is country endemic for schistosomiasis (SCH)?",null,null,"Endemic"]
[]
[null,"How many administrative units in the country?",null,null,11]
[]
[null,"If demographical data at the second administrative level are not available by age group, please enter the proportion (%) of population by age group in the country. If data are available, please leave these cells blank."]
[null,"1-4 years age","Preschool-age children (PreSAC)",null,0.124]
[null,"5-14 years age","School-age children (SAC)",null,0.26900000000000002]
[null,"15 years +","Adults",null,0.57499999999999996]

{"sheet":"COUNTRY_INFO","index":1,"n_rows":19,"n_cols":46,"rows_kept":19,"cut":false,"hidden":false,"merged":[[3,0,3,2],[3,7,3,10],[3,15,3,18],[5,0,5,2],[3,20,3,23],[5,20,5,23],[7,0,7,18],[5,3,5,6],[5,7,5,10],[5,11,5,14],[5,15,5,18]]}
["COUNTRY INFORMATION"]
["Administrative structure, population by age group, status of endemicity and planned interventions"]
[null,null,null,null,null,null,null,null,null,null,null,null,null,null,null,null,null,null,null,null,null,null,null,null,null,null,null,null,null,1.0299]
["TOTAL",null,null,{"$f":"SUM(D$9:D$1000)","v":1798830},{"$f":"SUM(E$9:E$1000)","v":223053},{"$f":"SUM(F$9:F$1000)","v":483885},{"$f":"SUM(G$9:G$1000)","v":1034328},null,null,null,null,{"$f":"SUM(L$9:L$1000)","v":1798830},{"$f":"SUM(M$9:M$1000)","v":0},{"$f":"SUM(N$9:N$1000)","v":706938},{"$f":"SUM(O$9:O$1000)","v":775635}]
[]
["Country administrative structure",null,null,"Population",null,null,null,"Endemicity",null,null,null,"Population requiring PC",null,null,null,"Number of treatment rounds planned for the year",null,null,null,"Criteria to apply for \nIVM+DEC+ALB therapy","Epidemiological surveys planned for the year"]
["Country","Province/State","District","Total","PreSAC","SAC","Adults","LF","Oncho","STH","SCH","LF","Oncho","STH","SCH","LF","Oncho","STH","SCH","LF","LF","Oncho","STH","SCH","IU_ID","IU_Name","x","x","x","x","x","x","x","x","x","x","x","x","x","x","x","x","x","x","x","x"]
[]
[{"$f":"IF(INTRO!$E$33<>0,INTRO!$E$33, \" \")","v":"Zanzibar"},"Kusini Pemba","Mkoani",152364,{"$f":"IF(INTRO!$E$48=\"\",\"\",ROUND($D9*INTRO!$E$48,0))","v":18893},{"$f":"IF(INTRO!$E$49=\"\",\"\",ROUND($D9*INTRO!$E$49,0))","v":40986},{"$f":"IF(INTRO!$E$50=\"\",\"\",ROUND($D9*INTRO!$E$50,0))","v":87609},1,0,3,2,{"$f":"IF(INTRO!$E$37=\"Endemic\",IF($H9>0,IF($H9=4,\"Unknown\",IF($H9=99,\"Stopped\",$D9)),0),\"Not required\")","v":152364},{"$f":"IF(INTRO!$E$39=\"Endemic\", IF($I9>0, IF($I9=4,\"Unknown\",IF($I9=99,\"Stopped\",$D9)), 0),\"Not required\")","v":"Not required"},{"$f":"IF(INTRO!$E$41=\"Endemic\", IF(AND($J9>1,$J9<5), IF($J9=4, \"Unknown\", E9+F9), 0),\"Not required\")","v":59879},57244,1,null,2,1,null,null,null,"Yes","Yes",51897,"Mkoani",null,null,141367,{"$f":"ROUND(AC9*$AD$3*$AD$3,0)","v":149947}]
[{"$f":"IF(INTRO!$E$33<>0,INTRO!$E$33, \" \")","v":"Zanzibar"},"Kusini Pemba","Chake Chake",152220,{"$f":"IF(INTRO!$E$48=\"\",\"\",ROUND($D10*INTRO!$E$48,0))","v":18875},{"$f":"IF(INTRO!$E$49=\"\",\"\",ROUND($D10*INTRO!$E$49,0))","v":40947},{"$f":"IF(INTRO!$E$50=\"\",\"\",ROUND($D10*INTRO!$E$50,0))","v":87527},1,0,3,2,{"$f":"IF(INTRO!$E$37=\"Endemic\",IF($H10>0,IF($H10=4,\"Unknown\",IF($H10=99,\"Stopped\",$D10)),0),\"Not required\")","v":152220},{"$f":"IF(INTRO!$E$39=\"Endemic\", IF($I10>0, IF($I10=4,\"Unknown\",IF($I10=99,\"Stopped\",$D10)), 0),\"Not required\")","v":"Not required"},{"$f":"IF(INTRO!$E$41=\"Endemic\", IF(AND($J10>1,$J10<5), IF($J10=4, \"Unknown\", E10+F10), 0),\"Not required\")","v":59822},80040,1,null,2,1,null,null,null,"Yes","Yes",51896,"Chake Chake",null,null,141709,{"$f":"ROUND(AC10*$AD$3*$AD$3,0)","v":150310}]
[{"$f":"IF(INTRO!$E$33<>0,INTRO!$E$33, \" \")","v":"Zanzibar"},"Kaskazini Pemba","Wete",166658,{"$f":"IF(INTRO!$E$48=\"\",\"\",ROUND($D11*INTRO!$E$48,0))","v":20666},{"$f":"IF(INTRO!$E$49=\"\",\"\",ROUND($D11*INTRO!$E$49,0))","v":44831},{"$f":"IF(INTRO!$E$50=\"\",\"\",ROUND($D11*INTRO!$E$50,0))","v":95828},1,0,3,3,{"$f":"IF(INTRO!$E$37=\"Endemic\",IF($H11>0,IF($H11=4,\"Unknown\",IF($H11=99,\"Stopped\",$D11)),0),\"Not required\")","v":166658},{"$f":"IF(INTRO!$E$39=\"Endemic\", IF($I11>0, IF($I11=4,\"Unknown\",IF($I11=99,\"Stopped\",$D11)), 0),\"Not required\")","v":"Not required"},{"$f":"IF(INTRO!$E$41=\"Endemic\", IF(AND($J11>1,$J11<5), IF($J11=4, \"Unknown\", E11+F11), 0),\"Not required\")","v":65497},52569,1,null,2,1,null,null,null,"Yes","Yes",51893,"Wete",null,null,155146,164562]
[{"$f":"IF(INTRO!$E$33<>0,INTRO!$E$33, \" \")","v":"Zanzibar"},"Kaskazini Pemba","Micheweni",163712,{"$f":"IF(INTRO!$E$48=\"\",\"\",ROUND($D12*INTRO!$E$48,0))","v":20300},{"$f":"IF(INTRO!$E$49=\"\",\"\",ROUND($D12*INTRO!$E$49,0))","v":44039},{"$f":"IF(INTRO!$E$50=\"\",\"\",ROUND($D12*INTRO!$E$50,0))","v":94134},1,0,3,3,{"$f":"IF(INTRO!$E$37=\"Endemic\",IF($H12>0,IF($H12=4,\"Unknown\",IF($H12=99,\"Stopped\",$D12)),0),\"Not required\")","v":163712},{"$f":"IF(INTRO!$E$39=\"Endemic\", IF($I12>0, IF($I12=4,\"Unknown\",IF($I12=99,\"Stopped\",$D12)), 0),\"Not required\")","v":"Not required"},{"$f":"IF(INTRO!$E$41=\"Endemic\", IF(AND($J12>1,$J12<5), IF($J12=4, \"Unknown\", E12+F12), 0),\"Not required\")","v":64339},60049,1,null,2,1,null,null,null,"Yes","Yes",51892,"Micheweni",null,null,151027,160193]
[{"$f":"IF(INTRO!$E$33<>0,INTRO!$E$33, \" \")","v":"Zanzibar"},"Kaskazini Unguja","Kaskazini A",137963,{"$f":"IF(INTRO!$E$48=\"\",\"\",ROUND($D13*INTRO!$E$48,0))","v":17107},{"$f":"IF(INTRO!$E$49=\"\",\"\",ROUND($D13*INTRO!$E$49,0))","v":37112},{"$f":"IF(INTRO!$E$50=\"\",\"\",ROUND($D13*INTRO!$E$50,0))","v":79329},1,0,3,3,{"$f":"IF(INTRO!$E$37=\"Endemic\",IF($H13>0,IF($H13=4,\"Unknown\",IF($H13=99,\"Stopped\",$D13)),0),\"Not required\")","v":137963},{"$f":"IF(INTRO!$E$39=\"Endemic\", IF($I13>0, IF($I13=4,\"Unknown\",IF($I13=99,\"Stopped\",$D13)), 0),\"Not required\")","v":"Not required"},{"$f":"IF(INTRO!$E$41=\"Endemic\", IF(AND($J13>1,$J13<5), IF($J13=4, \"Unknown\", E13+F13), 0),\"Not required\")","v":54219},45856,1,null,2,1,null,null,null,"Yes","Yes",51894,"Kaskazini A (North A)",null,null,132379,140414]
[{"$f":"IF(INTRO!$E$33<>0,INTRO!$E$33, \" \")","v":"Zanzibar"},"Kaskazini Unguja","Kaskazini B ",100187,{"$f":"IF(INTRO!$E$48=\"\",\"\",ROUND($D14*INTRO!$E$48,0))","v":12423},{"$f":"IF(INTRO!$E$49=\"\",\"\",ROUND($D14*INTRO!$E$49,0))","v":26950},{"$f":"IF(INTRO!$E$50=\"\",\"\",ROUND($D14*INTRO!$E$50,0))","v":57608},1,0,3,3,{"$f":"IF(INTRO!$E$37=\"Endemic\",IF($H14>0,IF($H14=4,\"Unknown\",IF($H14=99,\"Stopped\",$D14)),0),\"Not required\")","v":100187},{"$f":"IF(INTRO!$E$39=\"Endemic\", IF($I14>0, IF($I14=4,\"Unknown\",IF($I14=99,\"Stopped\",$D14)), 0),\"Not required\")","v":"Not required"},{"$f":"IF(INTRO!$E$41=\"Endemic\", IF(AND($J14>1,$J14<5), IF($J14=4, \"Unknown\", E14+F14), 0),\"Not required\")","v":39373},55505,1,null,2,1,null,null,null,"Yes","Yes",51895,"Kaskazini B (North B)",null,null,105126,111507]
[{"$f":"IF(INTRO!$E$33<>0,INTRO!$E$33, \" \")","v":"Zanzibar"},"Kusini Unguja","Kati ",94403,{"$f":"IF(INTRO!$E$48=\"\",\"\",ROUND($D15*INTRO!$E$48,0))","v":11706},{"$f":"IF(INTRO!$E$49=\"\",\"\",ROUND($D15*INTRO!$E$49,0))","v":25394},{"$f":"IF(INTRO!$E$50=\"\",\"\",ROUND($D15*INTRO!$E$50,0))","v":54282},1,0,3,2,{"$f":"IF(INTRO!$E$37=\"Endemic\",IF($H15>0,IF($H15=4,\"Unknown\",IF($H15=99,\"Stopped\",$D15)),0),\"Not required\")","v":94403},{"$f":"IF(INTRO!$E$39=\"Endemic\", IF($I15>0, IF($I15=4,\"Unknown\",IF($I15=99,\"Stopped\",$D15)), 0),\"Not required\")","v":"Not required"},{"$f":"IF(INTRO!$E$41=\"Endemic\", IF(AND($J15>1,$J15<5), IF($J15=4, \"Unknown\", E15+F15), 0),\"Not required\")","v":37100},35112,1,null,2,1,null,null,null,"Yes","Yes",51898,"Central (Kati)",null,null,91964,97546]
[{"$f":"IF(INTRO!$E$33<>0,INTRO!$E$33, \" \")","v":"Zanzibar"},"Kusini Unguja","Kusini ",50518,{"$f":"IF(INTRO!$E$48=\"\",\"\",ROUND($D16*INTRO!$E$48,0))","v":6264},{"$f":"IF(INTRO!$E$49=\"\",\"\",ROUND($D16*INTRO!$E$49,0))","v":13589},{"$f":"IF(INTRO!$E$50=\"\",\"\",ROUND($D16*INTRO!$E$50,0))","v":29048},1,0,2,1,{"$f":"IF(INTRO!$E$37=\"Endemic\",IF($H16>0,IF($H16=4,\"Unknown\",IF($H16=99,\"Stopped\",$D16)),0),\"Not required\")","v":50518},{"$f":"IF(INTRO!$E$39=\"Endemic\", IF($I16>0, IF($I16=4,\"Unknown\",IF($I16=99,\"Stopped\",$D16)), 0),\"Not required\")","v":"Not required"},{"$f":"IF(INTRO!$E$41=\"Endemic\", IF(AND($J16>1,$J16<5), IF($J16=4, \"Unknown\", E16+F16), 0),\"Not required\")","v":19853},9701,1,null,1,0,null,null,null,"Yes","Yes",51899,"Kusini (South)",null,null,48857,51822]
[{"$f":"IF(INTRO!$E$33<>0,INTRO!$E$33, \" \")","v":"Zanzibar"},"Mjini Magharibi","Mjini ",299341,{"$f":"IF(INTRO!$E$48=\"\",\"\",ROUND($D17*INTRO!$E$48,0))","v":37118},{"$f":"IF(INTRO!$E$49=\"\",\"\",ROUND($D17*INTRO!$E$49,0))","v":80523},{"$f":"IF(INTRO!$E$50=\"\",\"\",ROUND($D17*INTRO!$E$50,0))","v":172121},1,0,2,1,{"$f":"IF(INTRO!$E$37=\"Endemic\",IF($H17>0,IF($H17=4,\"Unknown\",IF($H17=99,\"Stopped\",$D17)),0),\"Not required\")","v":299341},{"$f":"IF(INTRO!$E$39=\"Endemic\", IF($I17>0, IF($I17=4,\"Unknown\",IF($I17=99,\"Stopped\",$D17)), 0),\"Not required\")","v":"Not required"},{"$f":"IF(INTRO!$E$41=\"Endemic\", IF(AND($J17>1,$J17<5), IF($J17=4, \"Unknown\", E17+F17), 0),\"Not required\")","v":117641},78453,1,null,1,0,null,null,null,"Yes","Yes",51901,"Mjini (Urban)",null,null,286344,303723]
[{"$f":"IF(INTRO!$E$33<>0,INTRO!$E$33, \" \")","v":"Zanzibar"},"Mjini Magharibi","Magharibi A ",209520,{"$f":"IF(INTRO!$E$48=\"\",\"\",ROUND($D18*INTRO!$E$48,0))","v":25980},{"$f":"IF(INTRO!$E$49=\"\",\"\",ROUND($D18*INTRO!$E$49,0))","v":56361},{"$f":"IF(INTRO!$E$50=\"\",\"\",ROUND($D18*INTRO!$E$50,0))","v":120474},1,0,2,3,{"$f":"IF(INTRO!$E$37=\"Endemic\",IF($H18>0,IF($H18=4,\"Unknown\",IF($H18=99,\"Stopped\",$D18)),0),\"Not required\")","v":209520},{"$f":"IF(INTRO!$E$39=\"Endemic\", IF($I18>0, IF($I18=4,\"Unknown\",IF($I18=99,\"Stopped\",$D18)), 0),\"Not required\")","v":"Not required"},{"$f":"IF(INTRO!$E$41=\"Endemic\", IF(AND($J18>1,$J18<5), IF($J18=4, \"Unknown\", E18+F18), 0),\"Not required\")","v":82341},77184,1,null,1,1,null,null,null,"Yes","Yes",51900,"Magharibi A (West A)",null,null,202101,214367]
[{"$f":"IF(INTRO!$E$33<>0,INTRO!$E$33, \" \")","v":"Zanzibar"},"Mjini Magharibi","Magharibi B",271944,{"$f":"IF(INTRO!$E$48=\"\",\"\",ROUND($D19*INTRO!$E$48,0))","v":33721},{"$f":"IF(INTRO!$E$49=\"\",\"\",ROUND($D19*INTRO!$E$49,0))","v":73153},{"$f":"IF(INTRO!$E$50=\"\",\"\",ROUND($D19*INTRO!$E$50,0))","v":156368},1,0,2,3,{"$f":"IF(INTRO!$E$37=\"Endemic\",IF($H19>0,IF($H19=4,\"Unknown\",IF($H19=99,\"Stopped\",$D19)),0),\"Not required\")","v":271944},{"$f":"IF(INTRO!$E$39=\"Endemic\", IF($I19>0, IF($I19=4,\"Unknown\",IF($I19=99,\"Stopped\",$D19)), 0),\"Not required\")","v":"Not required"},{"$f":"IF(INTRO!$E$41=\"Endemic\", IF(AND($J19>1,$J19<5), IF($J19=4, \"Unknown\", E19+F19), 0),\"Not required\")","v":106874},223922,1,null,1,1,null,null,null,"Yes","Yes",51902,"Magharibi B (West B)",null,null,261588,277465]

{"sheet":"DEC","index":2,"n_rows":19,"n_cols":13,"rows_kept":19,"cut":false,"hidden":true,"merged":[[6,10,7,10],[6,0,7,0],[6,11,7,11],[5,3,5,6],[5,9,5,12],[6,4,7,4],[6,3,7,3],[6,8,7,8],[6,12,7,12],[6,7,7,7],[6,6,7,6],[6,9,7,9],[3,0,3,2],[5,0,5,2],[6,5,7,5],[6,2,7,2],[6,1,7,1]]}
["Diethylcarbamazine citrate (DEC)"]
["Administrative structure, eligible population by age group, treatment plan and information about tablets"]
[]
["TOTAL",null,null,{"$f":"SUM(D$9:D$1000)","v":0},{"$f":"SUM(E$9:E$1000)","v":0},{"$f":"SUM(F$9:F$1000)","v":0},{"$f":"SUM(G$9:G$1000)","v":0},null,{"$f":"SUM(I$9:I$1000)","v":0},{"$f":"SUM(J$9:J$1000)","v":0},{"$f":"SUM(K$9:K$1000)","v":0},{"$f":"SUM(L$9:L$1000)","v":0},{"$f":"SUM(M$9:M$1000)","v":0}]
[]
["Country administrative structure",null,null,"Population requiring treatment with DEC",null,null,null,"Treatment plan","Target population","Diethylcarbamazine citrate (DEC)"]
["Country","Province/State","District","PreSAC","SAC","Adults","Total","LF","LF","Total required","Remaining in stock","Tablets to be procured","Bottle (100 mg)\n1000 tablets"]
[]
[{"$f":"IF(INTRO!$E$39<>\"Non-endemic\", \" \", IF(INTRO!$E$37=\"Non-endemic\",\" \", IF(COUNTRY_INFO!A9=0,\" \",COUNTRY_INFO!A9)))","v":" "},{"$f":"IF(INTRO!$E$39<>\"Non-endemic\", \" \", IF(INTRO!$E$37=\"Non-endemic\",\" \", IF(COUNTRY_INFO!B9=0,\" \",COUNTRY_INFO!B9)))","v":" "},{"$f":"IF(INTRO!$E$39<>\"Non-endemic\", \" \", IF(INTRO!$E$37=\"Non-endemic\",\" \", IF(COUNTRY_INFO!C9=0,\" \",COUNTRY_INFO!C9)))","v":" "},{"$f":"IF(INTRO!$E$39<>\"Non-endemic\", 0, IF(INTRO!$E$37=\"Non-endemic\",0,IF(COUNTRY_INFO!$H9=1,COUNTRY_INFO!E9,0)))","v":0},{"$f":"IF(INTRO!$E$39<>\"Non-endemic\", 0, IF(INTRO!$E$37=\"Non-endemic\",0,IF(COUNTRY_INFO!$H9=1,COUNTRY_INFO!F9,0)))","v":0},{"$f":"IF(INTRO!$E$39<>\"Non-endemic\", 0, IF(INTRO!$E$37=\"Non-endemic\",0,IF(COUNTRY_INFO!$H9=1,COUNTRY_INFO!G9,0)))","v":0},{"$f":"SUM(D9:F9)","v":0},{"$f":"IF(INTRO!$E$39=\"Non-endemic\",IF(INTRO!$E$37=\"Non-endemic\",\"Not required\",COUNTRY_INFO!P9),\"Treat with IVM\")","v":"Treat with IVM"},{"$f":"IF(H9=1,G9,0)","v":0},{"$f":"IF(I9>0,I9*2.5,0)","v":0},null,{"$f":"IF($J9>$K9,$J9-$K9,0)","v":0},{"$f":"ROUNDUP($J9/1000,0)","v":0}]
[{"$f":"IF(INTRO!$E$39<>\"Non-endemic\", \" \", IF(INTRO!$E$37=\"Non-endemic\",\" \", IF(COUNTRY_INFO!A10=0,\" \",COUNTRY_INFO!A10)))","v":" "},{"$f":"IF(INTRO!$E$39<>\"Non-endemic\", \" \", IF(INTRO!$E$37=\"Non-endemic\",\" \", IF(COUNTRY_INFO!B10=0,\" \",COUNTRY_INFO!B10)))","v":" "},{"$f":"IF(INTRO!$E$39<>\"Non-endemic\", \" \", IF(INTRO!$E$37=\"Non-endemic\",\" \", IF(COUNTRY_INFO!C10=0,\" \",COUNTRY_INFO!C10)))","v":" "},{"$f":"IF(INTRO!$E$39<>\"Non-endemic\", 0, IF(INTRO!$E$37=\"Non-endemic\",0,IF(COUNTRY_INFO!$H10=1,COUNTRY_INFO!E10,0)))","v":0},{"$f":"IF(INTRO!$E$39<>\"Non-endemic\", 0, IF(INTRO!$E$37=\"Non-endemic\",0,IF(COUNTRY_INFO!$H10=1,COUNTRY_INFO!F10,0)))","v":0},{"$f":"IF(INTRO!$E$39<>\"Non-endemic\", 0, IF(INTRO!$E$37=\"Non-endemic\",0,IF(COUNTRY_INFO!$H10=1,COUNTRY_INFO!G10,0)))","v":0},0,{"$f":"IF(INTRO!$E$39=\"Non-endemic\",IF(INTRO!$E$37=\"Non-endemic\",\"Not required\",COUNTRY_INFO!P10),\"Treat with IVM\")","v":"Treat with IVM"},0,0,null,0,0]
[{"$f":"IF(INTRO!$E$39<>\"Non-endemic\", \" \", IF(INTRO!$E$37=\"Non-endemic\",\" \", IF(COUNTRY_INFO!A11=0,\" \",COUNTRY_INFO!A11)))","v":" "},{"$f":"IF(INTRO!$E$39<>\"Non-endemic\", \" \", IF(INTRO!$E$37=\"Non-endemic\",\" \", IF(COUNTRY_INFO!B11=0,\" \",COUNTRY_INFO!B11)))","v":" "},{"$f":"IF(INTRO!$E$39<>\"Non-endemic\", \" \", IF(INTRO!$E$37=\"Non-endemic\",\" \", IF(COUNTRY_INFO!C11=0,\" \",COUNTRY_INFO!C11)))","v":" "},{"$f":"IF(INTRO!$E$39<>\"Non-endemic\", 0, IF(INTRO!$E$37=\"Non-endemic\",0,IF(COUNTRY_INFO!$H11=1,COUNTRY_INFO!E11,0)))","v":0},{"$f":"IF(INTRO!$E$39<>\"Non-endemic\", 0, IF(INTRO!$E$37=\"Non-endemic\",0,IF(COUNTRY_INFO!$H11=1,COUNTRY_INFO!F11,0)))","v":0},{"$f":"IF(INTRO!$E$39<>\"Non-endemic\", 0, IF(INTRO!$E$37=\"Non-endemic\",0,IF(COUNTRY_INFO!$H11=1,COUNTRY_INFO!G11,0)))","v":0},0,{"$f":"IF(INTRO!$E$39=\"Non-endemic\",IF(INTRO!$E$37=\"Non-endemic\",\"Not required\",COUNTRY_INFO!P11),\"Treat with IVM\")","v":"Treat with IVM"},0,0,null,0,0]
[{"$f":"IF(INTRO!$E$39<>\"Non-endemic\", \" \", IF(INTRO!$E$37=\"Non-endemic\",\" \", IF(COUNTRY_INFO!A12=0,\" \",COUNTRY_INFO!A12)))","v":" "},{"$f":"IF(INTRO!$E$39<>\"Non-endemic\", \" \", IF(INTRO!$E$37=\"Non-endemic\",\" \", IF(COUNTRY_INFO!B12=0,\" \",COUNTRY_INFO!B12)))","v":" "},{"$f":"IF(INTRO!$E$39<>\"Non-endemic\", \" \", IF(INTRO!$E$37=\"Non-endemic\",\" \", IF(COUNTRY_INFO!C12=0,\" \",COUNTRY_INFO!C12)))","v":" "},{"$f":"IF(INTRO!$E$39<>\"Non-endemic\", 0, IF(INTRO!$E$37=\"Non-endemic\",0,IF(COUNTRY_INFO!$H12=1,COUNTRY_INFO!E12,0)))","v":0},{"$f":"IF(INTRO!$E$39<>\"Non-endemic\", 0, IF(INTRO!$E$37=\"Non-endemic\",0,IF(COUNTRY_INFO!$H12=1,COUNTRY_INFO!F12,0)))","v":0},{"$f":"IF(INTRO!$E$39<>\"Non-endemic\", 0, IF(INTRO!$E$37=\"Non-endemic\",0,IF(COUNTRY_INFO!$H12=1,COUNTRY_INFO!G12,0)))","v":0},0,{"$f":"IF(INTRO!$E$39=\"Non-endemic\",IF(INTRO!$E$37=\"Non-endemic\",\"Not required\",COUNTRY_INFO!P12),\"Treat with IVM\")","v":"Treat with IVM"},0,0,null,0,0]
[{"$f":"IF(INTRO!$E$39<>\"Non-endemic\", \" \", IF(INTRO!$E$37=\"Non-endemic\",\" \", IF(COUNTRY_INFO!A13=0,\" \",COUNTRY_INFO!A13)))","v":" "},{"$f":"IF(INTRO!$E$39<>\"Non-endemic\", \" \", IF(INTRO!$E$37=\"Non-endemic\",\" \", IF(COUNTRY_INFO!B13=0,\" \",COUNTRY_INFO!B13)))","v":" "},{"$f":"IF(INTRO!$E$39<>\"Non-endemic\", \" \", IF(INTRO!$E$37=\"Non-endemic\",\" \", IF(COUNTRY_INFO!C13=0,\" \",COUNTRY_INFO!C13)))","v":" "},{"$f":"IF(INTRO!$E$39<>\"Non-endemic\", 0, IF(INTRO!$E$37=\"Non-endemic\",0,IF(COUNTRY_INFO!$H13=1,COUNTRY_INFO!E13,0)))","v":0},{"$f":"IF(INTRO!$E$39<>\"Non-endemic\", 0, IF(INTRO!$E$37=\"Non-endemic\",0,IF(COUNTRY_INFO!$H13=1,COUNTRY_INFO!F13,0)))","v":0},{"$f":"IF(INTRO!$E$39<>\"Non-endemic\", 0, IF(INTRO!$E$37=\"Non-endemic\",0,IF(COUNTRY_INFO!$H13=1,COUNTRY_INFO!G13,0)))","v":0},0,{"$f":"IF(INTRO!$E$39=\"Non-endemic\",IF(INTRO!$E$37=\"Non-endemic\",\"Not required\",COUNTRY_INFO!P13),\"Treat with IVM\")","v":"Treat with IVM"},0,0,null,0,0]
[{"$f":"IF(INTRO!$E$39<>\"Non-endemic\", \" \", IF(INTRO!$E$37=\"Non-endemic\",\" \", IF(COUNTRY_INFO!A14=0,\" \",COUNTRY_INFO!A14)))","v":" "},{"$f":"IF(INTRO!$E$39<>\"Non-endemic\", \" \", IF(INTRO!$E$37=\"Non-endemic\",\" \", IF(COUNTRY_INFO!B14=0,\" \",COUNTRY_INFO!B14)))","v":" "},{"$f":"IF(INTRO!$E$39<>\"Non-endemic\", \" \", IF(INTRO!$E$37=\"Non-endemic\",\" \", IF(COUNTRY_INFO!C14=0,\" \",COUNTRY_INFO!C14)))","v":" "},{"$f":"IF(INTRO!$E$39<>\"Non-endemic\", 0, IF(INTRO!$E$37=\"Non-endemic\",0,IF(COUNTRY_INFO!$H14=1,COUNTRY_INFO!E14,0)))","v":0},{"$f":"IF(INTRO!$E$39<>\"Non-endemic\", 0, IF(INTRO!$E$37=\"Non-endemic\",0,IF(COUNTRY_INFO!$H14=1,COUNTRY_INFO!F14,0)))","v":0},{"$f":"IF(INTRO!$E$39<>\"Non-endemic\", 0, IF(INTRO!$E$37=\"Non-endemic\",0,IF(COUNTRY_INFO!$H14=1,COUNTRY_INFO!G14,0)))","v":0},0,{"$f":"IF(INTRO!$E$39=\"Non-endemic\",IF(INTRO!$E$37=\"Non-endemic\",\"Not required\",COUNTRY_INFO!P14),\"Treat with IVM\")","v":"Treat with IVM"},0,0,null,0,0]
[{"$f":"IF(INTRO!$E$39<>\"Non-endemic\", \" \", IF(INTRO!$E$37=\"Non-endemic\",\" \", IF(COUNTRY_INFO!A15=0,\" \",COUNTRY_INFO!A15)))","v":" "},{"$f":"IF(INTRO!$E$39<>\"Non-endemic\", \" \", IF(INTRO!$E$37=\"Non-endemic\",\" \", IF(COUNTRY_INFO!B15=0,\" \",COUNTRY_INFO!B15)))","v":" "},{"$f":"IF(INTRO!$E$39<>\"Non-endemic\", \" \", IF(INTRO!$E$37=\"Non-endemic\",\" \", IF(COUNTRY_INFO!C15=0,\" \",COUNTRY_INFO!C15)))","v":" "},{"$f":"IF(INTRO!$E$39<>\"Non-endemic\", 0, IF(INTRO!$E$37=\"Non-endemic\",0,IF(COUNTRY_INFO!$H15=1,COUNTRY_INFO!E15,0)))","v":0},{"$f":"IF(INTRO!$E$39<>\"Non-endemic\", 0, IF(INTRO!$E$37=\"Non-endemic\",0,IF(COUNTRY_INFO!$H15=1,COUNTRY_INFO!F15,0)))","v":0},{"$f":"IF(INTRO!$E$39<>\"Non-endemic\", 0, IF(INTRO!$E$37=\"Non-endemic\",0,IF(COUNTRY_INFO!$H15=1,COUNTRY_INFO!G15,0)))","v":0},0,{"$f":"IF(INTRO!$E$39=\"Non-endemic\",IF(INTRO!$E$37=\"Non-endemic\",\"Not required\",COUNTRY_INFO!P15),\"Treat with IVM\")","v":"Treat with IVM"},0,0,null,0,0]
[{"$f":"IF(INTRO!$E$39<>\"Non-endemic\", \" \", IF(INTRO!$E$37=\"Non-endemic\",\" \", IF(COUNTRY_INFO!A16=0,\" \",COUNTRY_INFO!A16)))","v":" "},{"$f":"IF(INTRO!$E$39<>\"Non-endemic\", \" \", IF(INTRO!$E$37=\"Non-endemic\",\" \", IF(COUNTRY_INFO!B16=0,\" \",COUNTRY_INFO!B16)))","v":" "},{"$f":"IF(INTRO!$E$39<>\"Non-endemic\", \" \", IF(INTRO!$E$37=\"Non-endemic\",\" \", IF(COUNTRY_INFO!C16=0,\" \",COUNTRY_INFO!C16)))","v":" "},{"$f":"IF(INTRO!$E$39<>\"Non-endemic\", 0, IF(INTRO!$E$37=\"Non-endemic\",0,IF(COUNTRY_INFO!$H16=1,COUNTRY_INFO!E16,0)))","v":0},{"$f":"IF(INTRO!$E$39<>\"Non-endemic\", 0, IF(INTRO!$E$37=\"Non-endemic\",0,IF(COUNTRY_INFO!$H16=1,COUNTRY_INFO!F16,0)))","v":0},{"$f":"IF(INTRO!$E$39<>\"Non-endemic\", 0, IF(INTRO!$E$37=\"Non-endemic\",0,IF(COUNTRY_INFO!$H16=1,COUNTRY_INFO!G16,0)))","v":0},0,{"$f":"IF(INTRO!$E$39=\"Non-endemic\",IF(INTRO!$E$37=\"Non-endemic\",\"Not required\",COUNTRY_INFO!P16),\"Treat with IVM\")","v":"Treat with IVM"},0,0,null,0,0]
[{"$f":"IF(INTRO!$E$39<>\"Non-endemic\", \" \", IF(INTRO!$E$37=\"Non-endemic\",\" \", IF(COUNTRY_INFO!A17=0,\" \",COUNTRY_INFO!A17)))","v":" "},{"$f":"IF(INTRO!$E$39<>\"Non-endemic\", \" \", IF(INTRO!$E$37=\"Non-endemic\",\" \", IF(COUNTRY_INFO!B17=0,\" \",COUNTRY_INFO!B17)))","v":" "},{"$f":"IF(INTRO!$E$39<>\"Non-endemic\", \" \", IF(INTRO!$E$37=\"Non-endemic\",\" \", IF(COUNTRY_INFO!C17=0,\" \",COUNTRY_INFO!C17)))","v":" "},{"$f":"IF(INTRO!$E$39<>\"Non-endemic\", 0, IF(INTRO!$E$37=\"Non-endemic\",0,IF(COUNTRY_INFO!$H17=1,COUNTRY_INFO!E17,0)))","v":0},{"$f":"IF(INTRO!$E$39<>\"Non-endemic\", 0, IF(INTRO!$E$37=\"Non-endemic\",0,IF(COUNTRY_INFO!$H17=1,COUNTRY_INFO!F17,0)))","v":0},{"$f":"IF(INTRO!$E$39<>\"Non-endemic\", 0, IF(INTRO!$E$37=\"Non-endemic\",0,IF(COUNTRY_INFO!$H17=1,COUNTRY_INFO!G17,0)))","v":0},0,{"$f":"IF(INTRO!$E$39=\"Non-endemic\",IF(INTRO!$E$37=\"Non-endemic\",\"Not required\",COUNTRY_INFO!P17),\"Treat with IVM\")","v":"Treat with IVM"},0,0,null,0,0]
[{"$f":"IF(INTRO!$E$39<>\"Non-endemic\", \" \", IF(INTRO!$E$37=\"Non-endemic\",\" \", IF(COUNTRY_INFO!A18=0,\" \",COUNTRY_INFO!A18)))","v":" "},{"$f":"IF(INTRO!$E$39<>\"Non-endemic\", \" \", IF(INTRO!$E$37=\"Non-endemic\",\" \", IF(COUNTRY_INFO!B18=0,\" \",COUNTRY_INFO!B18)))","v":" "},{"$f":"IF(INTRO!$E$39<>\"Non-endemic\", \" \", IF(INTRO!$E$37=\"Non-endemic\",\" \", IF(COUNTRY_INFO!C18=0,\" \",COUNTRY_INFO!C18)))","v":" "},{"$f":"IF(INTRO!$E$39<>\"Non-endemic\", 0, IF(INTRO!$E$37=\"Non-endemic\",0,IF(COUNTRY_INFO!$H18=1,COUNTRY_INFO!E18,0)))","v":0},{"$f":"IF(INTRO!$E$39<>\"Non-endemic\", 0, IF(INTRO!$E$37=\"Non-endemic\",0,IF(COUNTRY_INFO!$H18=1,COUNTRY_INFO!F18,0)))","v":0},{"$f":"IF(INTRO!$E$39<>\"Non-endemic\", 0, IF(INTRO!$E$37=\"Non-endemic\",0,IF(COUNTRY_INFO!$H18=1,COUNTRY_INFO!G18,0)))","v":0},0,{"$f":"IF(INTRO!$E$39=\"Non-endemic\",IF(INTRO!$E$37=\"Non-endemic\",\"Not required\",COUNTRY_INFO!P18),\"Treat with IVM\")","v":"Treat with IVM"},0,0,null,0,0]
[{"$f":"IF(INTRO!$E$39<>\"Non-endemic\", \" \", IF(INTRO!$E$37=\"Non-endemic\",\" \", IF(COUNTRY_INFO!A19=0,\" \",COUNTRY_INFO!A19)))","v":" "},{"$f":"IF(INTRO!$E$39<>\"Non-endemic\", \" \", IF(INTRO!$E$37=\"Non-endemic\",\" \", IF(COUNTRY_INFO!B19=0,\" \",COUNTRY_INFO!B19)))","v":" "},{"$f":"IF(INTRO!$E$39<>\"Non-endemic\", \" \", IF(INTRO!$E$37=\"Non-endemic\",\" \", IF(COUNTRY_INFO!C19=0,\" \",COUNTRY_INFO!C19)))","v":" "},{"$f":"IF(INTRO!$E$39<>\"Non-endemic\", 0, IF(INTRO!$E$37=\"Non-endemic\",0,IF(COUNTRY_INFO!$H19=1,COUNTRY_INFO!E19,0)))","v":0},{"$f":"IF(INTRO!$E$39<>\"Non-endemic\", 0, IF(INTRO!$E$37=\"Non-endemic\",0,IF(COUNTRY_INFO!$H19=1,COUNTRY_INFO!F19,0)))","v":0},{"$f":"IF(INTRO!$E$39<>\"Non-endemic\", 0, IF(INTRO!$E$37=\"Non-endemic\",0,IF(COUNTRY_INFO!$H19=1,COUNTRY_INFO!G19,0)))","v":0},0,{"$f":"IF(INTRO!$E$39=\"Non-endemic\",IF(INTRO!$E$37=\"Non-endemic\",\"Not required\",COUNTRY_INFO!P19),\"Treat with IVM\")","v":"Treat with IVM"},0,0,null,0,0]

{"sheet":"ALB_MBD","index":3,"n_rows":19,"n_cols":27,"rows_kept":19,"cut":false,"hidden":false,"merged":[[5,10,5,17],[5,8,7,8],[5,18,5,23],[6,26,7,26],[5,24,5,26],[6,24,7,24],[6,25,7,25],[6,22,7,22],[3,0,3,2],[3,6,3,7],[5,0,5,2],[5,6,5,7],[5,3,5,5],[6,0,7,0],[6,1,7,1],[6,2,7,2],[6,3,7,3],[6,23,7,23],[6,21,7,21],[6,18,7,18],[6,19,7,19],[6,20,7,20],[6,4,7,4],[6,5,7,5],[6,6,7,6],[6,7,7,7],[6,14,6,17],[5,9,7,9],[6,10,6,13]]}
["Albendazole (ALB) and Mebendazole (MBD)"]
["Administrative structure, eligible population by age group, treatment plan and information about tablets"]
[]
["TOTAL",null,null,{"$f":"SUM(D$9:D$1000)","v":223053},{"$f":"SUM(E$9:E$1000)","v":483885},{"$f":"SUM(F$9:F$1000)","v":706938},null,null,{"$f":"SUM(I$9:I$1000)","v":1518213},null,{"$f":"SUM(K$9:K$1000)","v":343023},{"$f":"SUM(L$9:L$1000)","v":260259},{"$f":"SUM(M$9:M$1000)","v":0},{"$f":"SUM(N$9:N$1000)","v":603282},{"$f":"SUM(O$9:O$1000)","v":0},{"$f":"SUM(P$9:P$1000)","v":0},0,0,0,1518213,7597,0,260259,1304,0,0,0]
[]
["Country administrative structure",null,null,"Population requiring treatment with ALB/MBD",null,null,"Treatment plan",null,"People covered by PELF with ALB","Select medicine for treatment of STH","Target population",null,null,null,null,null,null,null,"Albendazole (ALB)",null,null,null,null,null,"Mebendazole (MBD)"]
["Country","Province/State","District","PreSAC","SAC","Total","LF","STH",null,null,"STH (ALB)",null,null,null,"STH (MBD)",null,null,null,"Remaining in stock (LF)","Tablets to be procured (LF)","Bottle (400 mg)\n200 tablets (LF)","Remaining in stock (STH)","Tablets to be procured for SAC (STH)","Bottle (400 mg)\n200 tablets (STH)","Remaining in stock","Tablets to be procured for SAC","Bottles (500 mg)\n150 tablets"]
[null,null,null,null,null,null,null,null,null,null,"PreSAC","SAC","Other","Total","PreSAC","SAC","Other","Total"]
[{"$f":"IF(AND(INTRO!$E$37=\"Non-endemic\",INTRO!$E$41=\"Non-endemic\"),\" \",IF(COUNTRY_INFO!A9=0,\" \",COUNTRY_INFO!A9))","v":"Zanzibar"},{"$f":"IF(AND(INTRO!$E$37=\"Non-endemic\",INTRO!$E$41=\"Non-endemic\"),\" \",IF(COUNTRY_INFO!B9=0,\" \",COUNTRY_INFO!B9))","v":"Kusini Pemba"},{"$f":"IF(AND(INTRO!$E$37=\"Non-endemic\",INTRO!$E$41=\"Non-endemic\"),\" \",IF(COUNTRY_INFO!C9=0,\" \",COUNTRY_INFO!C9))","v":"Mkoani"},{"$f":"IF(AND(INTRO!$E$37=\"Non-endemic\",INTRO!$E$41=\"Non-endemic\"),0,IF(AND(OR(COUNTRY_INFO!$H9=0,COUNTRY_INFO!$H9=4,COUNTRY_INFO!$H9=99),OR(COUNTRY_INFO!$J9=0,COUNTRY_INFO!$J9=4)),0,COUNTRY_INFO!$E9))","v":18893},{"$f":"IF(AND(INTRO!$E$37=\"Non-endemic\",INTRO!$E$41=\"Non-endemic\"),0,IF(AND(OR(COUNTRY_INFO!$H9=0,COUNTRY_INFO!$H9=4,COUNTRY_INFO!$H9=99),OR(COUNTRY_INFO!$J9=0,COUNTRY_INFO!$J9=4)),0,COUNTRY_INFO!$F9))","v":40986},{"$f":"SUM(D9:E9)","v":59879},{"$f":"IF(AND(INTRO!$E$37=\"Non-endemic\",INTRO!$E$41=\"Non-endemic\"),0,COUNTRY_INFO!P9)","v":1},{"$f":"IF(AND(INTRO!$E$37=\"Non-endemic\",INTRO!$E$41=\"Non-endemic\"),0,COUNTRY_INFO!R9)","v":2},{"$f":"IF(INTRO!$E$39=\"Non-endemic\",IF($G9=1,DEC!I9,0),IF($G9=1,IVM!G9,0))","v":128595},"ALB",{"$f":"IF($J9=\"ALB\", IF(INTRO!$E$39=\"Non-endemic\", IF($H9<>0, IF($I9=0, $D9*$H9, $D9*($H9-$G9)), 0), $D9*$H9), 0)","v":37786},{"$f":"IF($J9=\"ALB\", IF($H9<>0, IF($I9=0, $E9*$H9, $E9*($H9-$G9)),0), 0)","v":40986},null,{"$f":"SUM(K9:M9)","v":78772},{"$f":"IF($J9=\"MBD\", IF(INTRO!$E$39=\"Non-endemic\", IF($H9<>0, IF($I9=0, $D9*$H9, $D9*($H9-$G9)), 0), $D9*$H9), 0)","v":0},{"$f":"IF($J9=\"MBD\", IF($H9<>0,IF($I9=0, $E9*$H9, $E9*($H9-$G9)),0), 0 )","v":0},null,{"$f":"SUM(O9:Q9)","v":0},null,{"$f":"IF($I9>$S9, $I9-$S9,0)","v":128595},{"$f":"ROUNDUP($I9/200,0)","v":643},null,{"$f":"IF($L9>$V9,$L9-$V9,0)","v":40986},{"$f":"ROUNDUP($L9/200,0)","v":205},null,{"$f":"IF($P9>$Y9,$P9-$Y9,0)","v":0},{"$f":"ROUNDUP($P9/150,0)","v":0}]
[{"$f":"IF(AND(INTRO!$E$37=\"Non-endemic\",INTRO!$E$41=\"Non-endemic\"),\" \",IF(COUNTRY_INFO!A10=0,\" \",COUNTRY_INFO!A10))","v":"Zanzibar"},{"$f":"IF(AND(INTRO!$E$37=\"Non-endemic\",INTRO!$E$41=\"Non-endemic\"),\" \",IF(COUNTRY_INFO!B10=0,\" \",COUNTRY_INFO!B10))","v":"Kusini Pemba"},{"$f":"IF(AND(INTRO!$E$37=\"Non-endemic\",INTRO!$E$41=\"Non-endemic\"),\" \",IF(COUNTRY_INFO!C10=0,\" \",COUNTRY_INFO!C10))","v":"Chake Chake"},{"$f":"IF(AND(INTRO!$E$37=\"Non-endemic\",INTRO!$E$41=\"Non-endemic\"),0,IF(AND(OR(COUNTRY_INFO!$H10=0,COUNTRY_INFO!$H10=4,COUNTRY_INFO!$H10=99),OR(COUNTRY_INFO!$J10=0,COUNTRY_INFO!$J10=4)),0,COUNTRY_INFO!$E10))","v":18875},{"$f":"IF(AND(INTRO!$E$37=\"Non-endemic\",INTRO!$E$41=\"Non-endemic\"),0,IF(AND(OR(COUNTRY_INFO!$H10=0,COUNTRY_INFO!$H10=4,COUNTRY_INFO!$H10=99),OR(COUNTRY_INFO!$J10=0,COUNTRY_INFO!$J10=4)),0,COUNTRY_INFO!$F10))","v":40947},59822,{"$f":"IF(AND(INTRO!$E$37=\"Non-endemic\",INTRO!$E$41=\"Non-endemic\"),0,COUNTRY_INFO!P10)","v":1},{"$f":"IF(AND(INTRO!$E$37=\"Non-endemic\",INTRO!$E$41=\"Non-endemic\"),0,COUNTRY_INFO!R10)","v":2},{"$f":"IF(INTRO!$E$39=\"Non-endemic\",IF($G10=1,DEC!I10,0),IF($G10=1,IVM!G10,0))","v":128474},"ALB",{"$f":"IF($J10=\"ALB\", IF(INTRO!$E$39=\"Non-endemic\", IF($H10<>0, IF($I10=0, $D10*$H10, $D10*($H10-$G10)), 0), $D10*$H10), 0)","v":37750},40947,null,78697,{"$f":"IF($J10=\"MBD\", IF(INTRO!$E$39=\"Non-endemic\", IF($H10<>0, IF($I10=0, $D10*$H10, $D10*($H10-$G10)), 0), $D10*$H10), 0)","v":0},0,null,0,null,128474,643,null,40947,205,null,0,0]
[{"$f":"IF(AND(INTRO!$E$37=\"Non-endemic\",INTRO!$E$41=\"Non-endemic\"),\" \",IF(COUNTRY_INFO!A11=0,\" \",COUNTRY_INFO!A11))","v":"Zanzibar"},{"$f":"IF(AND(INTRO!$E$37=\"Non-endemic\",INTRO!$E$41=\"Non-endemic\"),\" \",IF(COUNTRY_INFO!B11=0,\" \",COUNTRY_INFO!B11))","v":"Kaskazini Pemba"},{"$f":"IF(AND(INTRO!$E$37=\"Non-endemic\",INTRO!$E$41=\"Non-endemic\"),\" \",IF(COUNTRY_INFO!C11=0,\" \",COUNTRY_INFO!C11))","v":"Wete"},{"$f":"IF(AND(INTRO!$E$37=\"Non-endemic\",INTRO!$E$41=\"Non-endemic\"),0,IF(AND(OR(COUNTRY_INFO!$H11=0,COUNTRY_INFO!$H11=4,COUNTRY_INFO!$H11=99),OR(COUNTRY_INFO!$J11=0,COUNTRY_INFO!$J11=4)),0,COUNTRY_INFO!$E11))","v":20666},{"$f":"IF(AND(INTRO!$E$37=\"Non-endemic\",INTRO!$E$41=\"Non-endemic\"),0,IF(AND(OR(COUNTRY_INFO!$H11=0,COUNTRY_INFO!$H11=4,COUNTRY_INFO!$H11=99),OR(COUNTRY_INFO!$J11=0,COUNTRY_INFO!$J11=4)),0,COUNTRY_INFO!$F11))","v":44831},65497,{"$f":"IF(AND(INTRO!$E$37=\"Non-endemic\",INTRO!$E$41=\"Non-endemic\"),0,COUNTRY_INFO!P11)","v":1},{"$f":"IF(AND(INTRO!$E$37=\"Non-endemic\",INTRO!$E$41=\"Non-endemic\"),0,COUNTRY_INFO!R11)","v":2},{"$f":"IF(INTRO!$E$39=\"Non-endemic\",IF($G11=1,DEC!I11,0),IF($G11=1,IVM!G11,0))","v":140659},"ALB",{"$f":"IF($J11=\"ALB\", IF(INTRO!$E$39=\"Non-endemic\", IF($H11<>0, IF($I11=0, $D11*$H11, $D11*($H11-$G11)), 0), $D11*$H11), 0)","v":41332},44831,null,86163,{"$f":"IF($J11=\"MBD\", IF(INTRO!$E$39=\"Non-endemic\", IF($H11<>0, IF($I11=0, $D11*$H11, $D11*($H11-$G11)), 0), $D11*$H11), 0)","v":0},0,null,0,null,140659,704,null,44831,225,null,0,0]
[{"$f":"IF(AND(INTRO!$E$37=\"Non-endemic\",INTRO!$E$41=\"Non-endemic\"),\" \",IF(COUNTRY_INFO!A12=0,\" \",COUNTRY_INFO!A12))","v":"Zanzibar"},{"$f":"IF(AND(INTRO!$E$37=\"Non-endemic\",INTRO!$E$41=\"Non-endemic\"),\" \",IF(COUNTRY_INFO!B12=0,\" \",COUNTRY_INFO!B12))","v":"Kaskazini Pemba"},{"$f":"IF(AND(INTRO!$E$37=\"Non-endemic\",INTRO!$E$41=\"Non-endemic\"),\" \",IF(COUNTRY_INFO!C12=0,\" \",COUNTRY_INFO!C12))","v":"Micheweni"},{"$f":"IF(AND(INTRO!$E$37=\"Non-endemic\",INTRO!$E$41=\"Non-endemic\"),0,IF(AND(OR(COUNTRY_INFO!$H12=0,COUNTRY_INFO!$H12=4,COUNTRY_INFO!$H12=99),OR(COUNTRY_INFO!$J12=0,COUNTRY_INFO!$J12=4)),0,COUNTRY_INFO!$E12))","v":20300},{"$f":"IF(AND(INTRO!$E$37=\"Non-endemic\",INTRO!$E$41=\"Non-endemic\"),0,IF(AND(OR(COUNTRY_INFO!$H12=0,COUNTRY_INFO!$H12=4,COUNTRY_INFO!$H12=99),OR(COUNTRY_INFO!$J12=0,COUNTRY_INFO!$J12=4)),0,COUNTRY_INFO!$F12))","v":44039},64339,{"$f":"IF(AND(INTRO!$E$37=\"Non-endemic\",INTRO!$E$41=\"Non-endemic\"),0,COUNTRY_INFO!P12)","v":1},{"$f":"IF(AND(INTRO!$E$37=\"Non-endemic\",INTRO!$E$41=\"Non-endemic\"),0,COUNTRY_INFO!R12)","v":2},{"$f":"IF(INTRO!$E$39=\"Non-endemic\",IF($G12=1,DEC!I12,0),IF($G12=1,IVM!G12,0))","v":138173},"ALB",{"$f":"IF($J12=\"ALB\", IF(INTRO!$E$39=\"Non-endemic\", IF($H12<>0, IF($I12=0, $D12*$H12, $D12*($H12-$G12)), 0), $D12*$H12), 0)","v":40600},44039,null,84639,{"$f":"IF($J12=\"MBD\", IF(INTRO!$E$39=\"Non-endemic\", IF($H12<>0, IF($I12=0, $D12*$H12, $D12*($H12-$G12)), 0), $D12*$H12), 0)","v":0},0,null,0,null,138173,691,null,44039,221,null,0,0]
[{"$f":"IF(AND(INTRO!$E$37=\"Non-endemic\",INTRO!$E$41=\"Non-endemic\"),\" \",IF(COUNTRY_INFO!A13=0,\" \",COUNTRY_INFO!A13))","v":"Zanzibar"},{"$f":"IF(AND(INTRO!$E$37=\"Non-endemic\",INTRO!$E$41=\"Non-endemic\"),\" \",IF(COUNTRY_INFO!B13=0,\" \",COUNTRY_INFO!B13))","v":"Kaskazini Unguja"},{"$f":"IF(AND(INTRO!$E$37=\"Non-endemic\",INTRO!$E$41=\"Non-endemic\"),\" \",IF(COUNTRY_INFO!C13=0,\" \",COUNTRY_INFO!C13))","v":"Kaskazini A"},{"$f":"IF(AND(INTRO!$E$37=\"Non-endemic\",INTRO!$E$41=\"Non-endemic\"),0,IF(AND(OR(COUNTRY_INFO!$H13=0,COUNTRY_INFO!$H13=4,COUNTRY_INFO!$H13=99),OR(COUNTRY_INFO!$J13=0,COUNTRY_INFO!$J13=4)),0,COUNTRY_INFO!$E13))","v":17107},{"$f":"IF(AND(INTRO!$E$37=\"Non-endemic\",INTRO!$E$41=\"Non-endemic\"),0,IF(AND(OR(COUNTRY_INFO!$H13=0,COUNTRY_INFO!$H13=4,COUNTRY_INFO!$H13=99),OR(COUNTRY_INFO!$J13=0,COUNTRY_INFO!$J13=4)),0,COUNTRY_INFO!$F13))","v":37112},54219,{"$f":"IF(AND(INTRO!$E$37=\"Non-endemic\",INTRO!$E$41=\"Non-endemic\"),0,COUNTRY_INFO!P13)","v":1},{"$f":"IF(AND(INTRO!$E$37=\"Non-endemic\",INTRO!$E$41=\"Non-endemic\"),0,COUNTRY_INFO!R13)","v":2},{"$f":"IF(INTRO!$E$39=\"Non-endemic\",IF($G13=1,DEC!I13,0),IF($G13=1,IVM!G13,0))","v":116441},"ALB",{"$f":"IF($J13=\"ALB\", IF(INTRO!$E$39=\"Non-endemic\", IF($H13<>0, IF($I13=0, $D13*$H13, $D13*($H13-$G13)), 0), $D13*$H13), 0)","v":34214},37112,null,71326,{"$f":"IF($J13=\"MBD\", IF(INTRO!$E$39=\"Non-endemic\", IF($H13<>0, IF($I13=0, $D13*$H13, $D13*($H13-$G13)), 0), $D13*$H13), 0)","v":0},0,null,0,null,116441,583,null,37112,186,null,0,0]
[{"$f":"IF(AND(INTRO!$E$37=\"Non-endemic\",INTRO!$E$41=\"Non-endemic\"),\" \",IF(COUNTRY_INFO!A14=0,\" \",COUNTRY_INFO!A14))","v":"Zanzibar"},{"$f":"IF(AND(INTRO!$E$37=\"Non-endemic\",INTRO!$E$41=\"Non-endemic\"),\" \",IF(COUNTRY_INFO!B14=0,\" \",COUNTRY_INFO!B14))","v":"Kaskazini Unguja"},{"$f":"IF(AND(INTRO!$E$37=\"Non-endemic\",INTRO!$E$41=\"Non-endemic\"),\" \",IF(COUNTRY_INFO!C14=0,\" \",COUNTRY_INFO!C14))","v":"Kaskazini B "},{"$f":"IF(AND(INTRO!$E$37=\"Non-endemic\",INTRO!$E$41=\"Non-endemic\"),0,IF(AND(OR(COUNTRY_INFO!$H14=0,COUNTRY_INFO!$H14=4,COUNTRY_INFO!$H14=99),OR(COUNTRY_INFO!$J14=0,COUNTRY_INFO!$J14=4)),0,COUNTRY_INFO!$E14))","v":12423},{"$f":"IF(AND(INTRO!$E$37=\"Non-endemic\",INTRO!$E$41=\"Non-endemic\"),0,IF(AND(OR(COUNTRY_INFO!$H14=0,COUNTRY_INFO!$H14=4,COUNTRY_INFO!$H14=99),OR(COUNTRY_INFO!$J14=0,COUNTRY_INFO!$J14=4)),0,COUNTRY_INFO!$F14))","v":26950},39373,{"$f":"IF(AND(INTRO!$E$37=\"Non-endemic\",INTRO!$E$41=\"Non-endemic\"),0,COUNTRY_INFO!P14)","v":1},{"$f":"IF(AND(INTRO!$E$37=\"Non-endemic\",INTRO!$E$41=\"Non-endemic\"),0,COUNTRY_INFO!R14)","v":2},{"$f":"IF(INTRO!$E$39=\"Non-endemic\",IF($G14=1,DEC!I14,0),IF($G14=1,IVM!G14,0))","v":84558},"ALB",{"$f":"IF($J14=\"ALB\", IF(INTRO!$E$39=\"Non-endemic\", IF($H14<>0, IF($I14=0, $D14*$H14, $D14*($H14-$G14)), 0), $D14*$H14), 0)","v":24846},26950,null,51796,{"$f":"IF($J14=\"MBD\", IF(INTRO!$E$39=\"Non-endemic\", IF($H14<>0, IF($I14=0, $D14*$H14, $D14*($H14-$G14)), 0), $D14*$H14), 0)","v":0},0,null,0,null,84558,423,null,26950,135,null,0,0]
[{"$f":"IF(AND(INTRO!$E$37=\"Non-endemic\",INTRO!$E$41=\"Non-endemic\"),\" \",IF(COUNTRY_INFO!A15=0,\" \",COUNTRY_INFO!A15))","v":"Zanzibar"},{"$f":"IF(AND(INTRO!$E$37=\"Non-endemic\",INTRO!$E$41=\"Non-endemic\"),\" \",IF(COUNTRY_INFO!B15=0,\" \",COUNTRY_INFO!B15))","v":"Kusini Unguja"},{"$f":"IF(AND(INTRO!$E$37=\"Non-endemic\",INTRO!$E$41=\"Non-endemic\"),\" \",IF(COUNTRY_INFO!C15=0,\" \",COUNTRY_INFO!C15))","v":"Kati "},{"$f":"IF(AND(INTRO!$E$37=\"Non-endemic\",INTRO!$E$41=\"Non-endemic\"),0,IF(AND(OR(COUNTRY_INFO!$H15=0,COUNTRY_INFO!$H15=4,COUNTRY_INFO!$H15=99),OR(COUNTRY_INFO!$J15=0,COUNTRY_INFO!$J15=4)),0,COUNTRY_INFO!$E15))","v":11706},{"$f":"IF(AND(INTRO!$E$37=\"Non-endemic\",INTRO!$E$41=\"Non-endemic\"),0,IF(AND(OR(COUNTRY_INFO!$H15=0,COUNTRY_INFO!$H15=4,COUNTRY_INFO!$H15=99),OR(COUNTRY_INFO!$J15=0,COUNTRY_INFO!$J15=4)),0,COUNTRY_INFO!$F15))","v":25394},37100,{"$f":"IF(AND(INTRO!$E$37=\"Non-endemic\",INTRO!$E$41=\"Non-endemic\"),0,COUNTRY_INFO!P15)","v":1},{"$f":"IF(AND(INTRO!$E$37=\"Non-endemic\",INTRO!$E$41=\"Non-endemic\"),0,COUNTRY_INFO!R15)","v":2},{"$f":"IF(INTRO!$E$39=\"Non-endemic\",IF($G15=1,DEC!I15,0),IF($G15=1,IVM!G15,0))","v":79676},"ALB",{"$f":"IF($J15=\"ALB\", IF(INTRO!$E$39=\"Non-endemic\", IF($H15<>0, IF($I15=0, $D15*$H15, $D15*($H15-$G15)), 0), $D15*$H15), 0)","v":23412},25394,null,48806,{"$f":"IF($J15=\"MBD\", IF(INTRO!$E$39=\"Non-endemic\", IF($H15<>0, IF($I15=0, $D15*$H15, $D15*($H15-$G15)), 0), $D15*$H15), 0)","v":0},0,null,0,null,79676,399,null,25394,127,null,0,0]
[{"$f":"IF(AND(INTRO!$E$37=\"Non-endemic\",INTRO!$E$41=\"Non-endemic\"),\" \",IF(COUNTRY_INFO!A16=0,\" \",COUNTRY_INFO!A16))","v":"Zanzibar"},{"$f":"IF(AND(INTRO!$E$37=\"Non-endemic\",INTRO!$E$41=\"Non-endemic\"),\" \",IF(COUNTRY_INFO!B16=0,\" \",COUNTRY_INFO!B16))","v":"Kusini Unguja"},{"$f":"IF(AND(INTRO!$E$37=\"Non-endemic\",INTRO!$E$41=\"Non-endemic\"),\" \",IF(COUNTRY_INFO!C16=0,\" \",COUNTRY_INFO!C16))","v":"Kusini "},{"$f":"IF(AND(INTRO!$E$37=\"Non-endemic\",INTRO!$E$41=\"Non-endemic\"),0,IF(AND(OR(COUNTRY_INFO!$H16=0,COUNTRY_INFO!$H16=4,COUNTRY_INFO!$H16=99),OR(COUNTRY_INFO!$J16=0,COUNTRY_INFO!$J16=4)),0,COUNTRY_INFO!$E16))","v":6264},{"$f":"IF(AND(INTRO!$E$37=\"Non-endemic\",INTRO!$E$41=\"Non-endemic\"),0,IF(AND(OR(COUNTRY_INFO!$H16=0,COUNTRY_INFO!$H16=4,COUNTRY_INFO!$H16=99),OR(COUNTRY_INFO!$J16=0,COUNTRY_INFO!$J16=4)),0,COUNTRY_INFO!$F16))","v":13589},19853,{"$f":"IF(AND(INTRO!$E$37=\"Non-endemic\",INTRO!$E$41=\"Non-endemic\"),0,COUNTRY_INFO!P16)","v":1},{"$f":"IF(AND(INTRO!$E$37=\"Non-endemic\",INTRO!$E$41=\"Non-endemic\"),0,COUNTRY_INFO!R16)","v":1},{"$f":"IF(INTRO!$E$39=\"Non-endemic\",IF($G16=1,DEC!I16,0),IF($G16=1,IVM!G16,0))","v":42637},"ALB",{"$f":"IF($J16=\"ALB\", IF(INTRO!$E$39=\"Non-endemic\", IF($H16<>0, IF($I16=0, $D16*$H16, $D16*($H16-$G16)), 0), $D16*$H16), 0)","v":6264},0,null,6264,{"$f":"IF($J16=\"MBD\", IF(INTRO!$E$39=\"Non-endemic\", IF($H16<>0, IF($I16=0, $D16*$H16, $D16*($H16-$G16)), 0), $D16*$H16), 0)","v":0},0,null,0,null,42637,214,null,0,0,null,0,0]
[{"$f":"IF(AND(INTRO!$E$37=\"Non-endemic\",INTRO!$E$41=\"Non-endemic\"),\" \",IF(COUNTRY_INFO!A17=0,\" \",COUNTRY_INFO!A17))","v":"Zanzibar"},{"$f":"IF(AND(INTRO!$E$37=\"Non-endemic\",INTRO!$E$41=\"Non-endemic\"),\" \",IF(COUNTRY_INFO!B17=0,\" \",COUNTRY_INFO!B17))","v":"Mjini Magharibi"},{"$f":"IF(AND(INTRO!$E$37=\"Non-endemic\",INTRO!$E$41=\"Non-endemic\"),\" \",IF(COUNTRY_INFO!C17=0,\" \",COUNTRY_INFO!C17))","v":"Mjini "},{"$f":"IF(AND(INTRO!$E$37=\"Non-endemic\",INTRO!$E$41=\"Non-endemic\"),0,IF(AND(OR(COUNTRY_INFO!$H17=0,COUNTRY_INFO!$H17=4,COUNTRY_INFO!$H17=99),OR(COUNTRY_INFO!$J17=0,COUNTRY_INFO!$J17=4)),0,COUNTRY_INFO!$E17))","v":37118},{"$f":"IF(AND(INTRO!$E$37=\"Non-endemic\",INTRO!$E$41=\"Non-endemic\"),0,IF(AND(OR(COUNTRY_INFO!$H17=0,COUNTRY_INFO!$H17=4,COUNTRY_INFO!$H17=99),OR(COUNTRY_INFO!$J17=0,COUNTRY_INFO!$J17=4)),0,COUNTRY_INFO!$F17))","v":80523},117641,{"$f":"IF(AND(INTRO!$E$37=\"Non-endemic\",INTRO!$E$41=\"Non-endemic\"),0,COUNTRY_INFO!P17)","v":1},{"$f":"IF(AND(INTRO!$E$37=\"Non-endemic\",INTRO!$E$41=\"Non-endemic\"),0,COUNTRY_INFO!R17)","v":1},{"$f":"IF(INTRO!$E$39=\"Non-endemic\",IF($G17=1,DEC!I17,0),IF($G17=1,IVM!G17,0))","v":252644},"ALB",{"$f":"IF($J17=\"ALB\", IF(INTRO!$E$39=\"Non-endemic\", IF($H17<>0, IF($I17=0, $D17*$H17, $D17*($H17-$G17)), 0), $D17*$H17), 0)","v":37118},0,null,37118,{"$f":"IF($J17=\"MBD\", IF(INTRO!$E$39=\"Non-endemic\", IF($H17<>0, IF($I17=0, $D17*$H17, $D17*($H17-$G17)), 0), $D17*$H17), 0)","v":0},0,null,0,null,252644,1264,null,0,0,null,0,0]
[{"$f":"IF(AND(INTRO!$E$37=\"Non-endemic\",INTRO!$E$41=\"Non-endemic\"),\" \",IF(COUNTRY_INFO!A18=0,\" \",COUNTRY_INFO!A18))","v":"Zanzibar"},{"$f":"IF(AND(INTRO!$E$37=\"Non-endemic\",INTRO!$E$41=\"Non-endemic\"),\" \",IF(COUNTRY_INFO!B18=0,\" \",COUNTRY_INFO!B18))","v":"Mjini Magharibi"},{"$f":"IF(AND(INTRO!$E$37=\"Non-endemic\",INTRO!$E$41=\"Non-endemic\"),\" \",IF(COUNTRY_INFO!C18=0,\" \",COUNTRY_INFO!C18))","v":"Magharibi A "},{"$f":"IF(AND(INTRO!$E$37=\"Non-endemic\",INTRO!$E$41=\"Non-endemic\"),0,IF(AND(OR(COUNTRY_INFO!$H18=0,COUNTRY_INFO!$H18=4,COUNTRY_INFO!$H18=99),OR(COUNTRY_INFO!$J18=0,COUNTRY_INFO!$J18=4)),0,COUNTRY_INFO!$E18))","v":25980},{"$f":"IF(AND(INTRO!$E$37=\"Non-endemic\",INTRO!$E$41=\"Non-endemic\"),0,IF(AND(OR(COUNTRY_INFO!$H18=0,COUNTRY_INFO!$H18=4,COUNTRY_INFO!$H18=99),OR(COUNTRY_INFO!$J18=0,COUNTRY_INFO!$J18=4)),0,COUNTRY_INFO!$F18))","v":56361},82341,{"$f":"IF(AND(INTRO!$E$37=\"Non-endemic\",INTRO!$E$41=\"Non-endemic\"),0,COUNTRY_INFO!P18)","v":1},{"$f":"IF(AND(INTRO!$E$37=\"Non-endemic\",INTRO!$E$41=\"Non-endemic\"),0,COUNTRY_INFO!R18)","v":1},{"$f":"IF(INTRO!$E$39=\"Non-endemic\",IF($G18=1,DEC!I18,0),IF($G18=1,IVM!G18,0))","v":176835},"ALB",{"$f":"IF($J18=\"ALB\", IF(INTRO!$E$39=\"Non-endemic\", IF($H18<>0, IF($I18=0, $D18*$H18, $D18*($H18-$G18)), 0), $D18*$H18), 0)","v":25980},0,null,25980,{"$f":"IF($J18=\"MBD\", IF(INTRO!$E$39=\"Non-endemic\", IF($H18<>0, IF($I18=0, $D18*$H18, $D18*($H18-$G18)), 0), $D18*$H18), 0)","v":0},0,null,0,null,176835,885,null,0,0,null,0,0]
[{"$f":"IF(AND(INTRO!$E$37=\"Non-endemic\",INTRO!$E$41=\"Non-endemic\"),\" \",IF(COUNTRY_INFO!A19=0,\" \",COUNTRY_INFO!A19))","v":"Zanzibar"},{"$f":"IF(AND(INTRO!$E$37=\"Non-endemic\",INTRO!$E$41=\"Non-endemic\"),\" \",IF(COUNTRY_INFO!B19=0,\" \",COUNTRY_INFO!B19))","v":"Mjini Magharibi"},{"$f":"IF(AND(INTRO!$E$37=\"Non-endemic\",INTRO!$E$41=\"Non-endemic\"),\" \",IF(COUNTRY_INFO!C19=0,\" \",COUNTRY_INFO!C19))","v":"Magharibi B"},{"$f":"IF(AND(INTRO!$E$37=\"Non-endemic\",INTRO!$E$41=\"Non-endemic\"),0,IF(AND(OR(COUNTRY_INFO!$H19=0,COUNTRY_INFO!$H19=4,COUNTRY_INFO!$H19=99),OR(COUNTRY_INFO!$J19=0,COUNTRY_INFO!$J19=4)),0,COUNTRY_INFO!$E19))","v":33721},{"$f":"IF(AND(INTRO!$E$37=\"Non-endemic\",INTRO!$E$41=\"Non-endemic\"),0,IF(AND(OR(COUNTRY_INFO!$H19=0,COUNTRY_INFO!$H19=4,COUNTRY_INFO!$H19=99),OR(COUNTRY_INFO!$J19=0,COUNTRY_INFO!$J19=4)),0,COUNTRY_INFO!$F19))","v":73153},106874,{"$f":"IF(AND(INTRO!$E$37=\"Non-endemic\",INTRO!$E$41=\"Non-endemic\"),0,COUNTRY_INFO!P19)","v":1},{"$f":"IF(AND(INTRO!$E$37=\"Non-endemic\",INTRO!$E$41=\"Non-endemic\"),0,COUNTRY_INFO!R19)","v":1},{"$f":"IF(INTRO!$E$39=\"Non-endemic\",IF($G19=1,DEC!I19,0),IF($G19=1,IVM!G19,0))","v":229521},"ALB",{"$f":"IF($J19=\"ALB\", IF(INTRO!$E$39=\"Non-endemic\", IF($H19<>0, IF($I19=0, $D19*$H19, $D19*($H19-$G19)), 0), $D19*$H19), 0)","v":33721},0,null,33721,{"$f":"IF($J19=\"MBD\", IF(INTRO!$E$39=\"Non-endemic\", IF($H19<>0, IF($I19=0, $D19*$H19, $D19*($H19-$G19)), 0), $D19*$H19), 0)","v":0},0,null,0,null,229521,1148,null,0,0,null,0,0]

{"sheet":"PZQ","index":4,"n_rows":19,"n_cols":18,"rows_kept":19,"cut":false,"hidden":false,"merged":[[5,12,5,17],[6,6,7,6],[6,8,7,8],[6,9,7,9],[3,0,3,2],[5,0,5,2],[5,3,5,5],[5,8,5,11],[5,6,5,7],[6,10,7,10],[6,17,7,17],[6,13,7,13],[6,14,7,14],[6,15,7,15],[6,11,7,11],[6,12,7,12],[6,16,7,16],[6,4,7,4],[6,5,7,5],[6,7,7,7],[6,0,7,0],[6,1,7,1],[6,2,7,2],[6,3,7,3]]}
["Praziquantel (PZQ)"]
["Administrative structure, eligible population by age group, treatment plan and information about tablets"]
[]
["TOTAL",null,null,{"$f":"SUM(D$9:D$1000)","v":533583},{"$f":"SUM(E$9:E$1000)","v":242052},{"$f":"SUM(F$9:F$1000)","v":775635},null,null,{"$f":"SUM(I$9:I$1000)","v":389773},0,242052,631825,974432.5,726156,974432.5,0,974432.5,979]
[]
["Country administrative structure",null,null,"Population requiring treatment with PZQ",null,null,"Treatment plan",null,"Target population",null,null,null,"Praziquantel (PZQ)"]
["Country","Province/State","District","SAC","Adults","Total","SCH","All SAC targeted?","SAC","SAC\nat lower level","Adults","Total","SAC","Adults","Total required\nfor SAC","Remaining in stock","Tablets to be procured","Bottle (600 mg)\n1000 tablets"]
[]
[{"$f":"IF(INTRO!$E$43=\"Non-endemic\",\" \", IF(COUNTRY_INFO!A9=0,\" \",COUNTRY_INFO!A9))","v":"Zanzibar"},{"$f":"IF(INTRO!$E$43=\"Non-endemic\",\" \", IF(COUNTRY_INFO!B9=0,\" \",COUNTRY_INFO!B9))","v":"Kusini Pemba"},{"$f":"IF(INTRO!$E$43=\"Non-endemic\",\" \", IF(COUNTRY_INFO!C9=0,\" \",COUNTRY_INFO!C9))","v":"Mkoani"},42786,14458,{"$f":"SUM(D9:E9)","v":57244},{"$f":"IF(INTRO!$E$43=\"Non-endemic\", \"Not required\", COUNTRY_INFO!S9)","v":1},"Yes",{"$f":"IF($D9=0,0,IF(AND($G9>0,$H9<>\"Yes\"),D9,IF(AND($G9>0,$H9=\"Yes\"),COUNTRY_INFO!$F9,0)))","v":40986},null,{"$f":"IF($G9>0,E9, 0)","v":14458},{"$f":"IF($J9=0,SUM(I9,K9),SUM(J9,K9))","v":55444},{"$f":"IF($J9=0,$I9*2.5,$J9*2.5)","v":102465},{"$f":"$K9*3","v":43374},{"$f":"M9","v":102465},null,{"$f":"IF($O9>$P9,O9-P9,0)","v":102465},{"$f":"ROUNDUP($O9/1000,0)","v":103}]
[{"$f":"IF(INTRO!$E$43=\"Non-endemic\",\" \", IF(COUNTRY_INFO!A10=0,\" \",COUNTRY_INFO!A10))","v":"Zanzibar"},{"$f":"IF(INTRO!$E$43=\"Non-endemic\",\" \", IF(COUNTRY_INFO!B10=0,\" \",COUNTRY_INFO!B10))","v":"Kusini Pemba"},{"$f":"IF(INTRO!$E$43=\"Non-endemic\",\" \", IF(COUNTRY_INFO!C10=0,\" \",COUNTRY_INFO!C10))","v":"Chake Chake"},50544,29496,80040,{"$f":"IF(INTRO!$E$43=\"Non-endemic\", \"Not required\", COUNTRY_INFO!S10)","v":1},"Yes",{"$f":"IF($D10=0,0,IF(AND($G10>0,$H10<>\"Yes\"),D10,IF(AND($G10>0,$H10=\"Yes\"),COUNTRY_INFO!$F10,0)))","v":40947},null,29496,70443,102367.5,88488,102367.5,null,102367.5,103]
[{"$f":"IF(INTRO!$E$43=\"Non-endemic\",\" \", IF(COUNTRY_INFO!A11=0,\" \",COUNTRY_INFO!A11))","v":"Zanzibar"},{"$f":"IF(INTRO!$E$43=\"Non-endemic\",\" \", IF(COUNTRY_INFO!B11=0,\" \",COUNTRY_INFO!B11))","v":"Kaskazini Pemba"},{"$f":"IF(INTRO!$E$43=\"Non-endemic\",\" \", IF(COUNTRY_INFO!C11=0,\" \",COUNTRY_INFO!C11))","v":"Wete"},41251,11318,52569,{"$f":"IF(INTRO!$E$43=\"Non-endemic\", \"Not required\", COUNTRY_INFO!S11)","v":1},"Yes",{"$f":"IF($D11=0,0,IF(AND($G11>0,$H11<>\"Yes\"),D11,IF(AND($G11>0,$H11=\"Yes\"),COUNTRY_INFO!$F11,0)))","v":44831},null,11318,56149,112077.5,33954,112077.5,null,112077.5,113]
[{"$f":"IF(INTRO!$E$43=\"Non-endemic\",\" \", IF(COUNTRY_INFO!A12=0,\" \",COUNTRY_INFO!A12))","v":"Zanzibar"},{"$f":"IF(INTRO!$E$43=\"Non-endemic\",\" \", IF(COUNTRY_INFO!B12=0,\" \",COUNTRY_INFO!B12))","v":"Kaskazini Pemba"},{"$f":"IF(INTRO!$E$43=\"Non-endemic\",\" \", IF(COUNTRY_INFO!C12=0,\" \",COUNTRY_INFO!C12))","v":"Micheweni"},45936,14113,60049,{"$f":"IF(INTRO!$E$43=\"Non-endemic\", \"Not required\", COUNTRY_INFO!S12)","v":1},"Yes",{"$f":"IF($D12=0,0,IF(AND($G12>0,$H12<>\"Yes\"),D12,IF(AND($G12>0,$H12=\"Yes\"),COUNTRY_INFO!$F12,0)))","v":44039},null,14113,58152,110097.5,42339,110097.5,null,110097.5,111]
[{"$f":"IF(INTRO!$E$43=\"Non-endemic\",\" \", IF(COUNTRY_INFO!A13=0,\" \",COUNTRY_INFO!A13))","v":"Zanzibar"},{"$f":"IF(INTRO!$E$43=\"Non-endemic\",\" \", IF(COUNTRY_INFO!B13=0,\" \",COUNTRY_INFO!B13))","v":"Kaskazini Unguja"},{"$f":"IF(INTRO!$E$43=\"Non-endemic\",\" \", IF(COUNTRY_INFO!C13=0,\" \",COUNTRY_INFO!C13))","v":"Kaskazini A"},41234,4622,45856,{"$f":"IF(INTRO!$E$43=\"Non-endemic\", \"Not required\", COUNTRY_INFO!S13)","v":1},"Yes",{"$f":"IF($D13=0,0,IF(AND($G13>0,$H13<>\"Yes\"),D13,IF(AND($G13>0,$H13=\"Yes\"),COUNTRY_INFO!$F13,0)))","v":37112},null,4622,41734,92780,13866,92780,null,92780,93]
[{"$f":"IF(INTRO!$E$43=\"Non-endemic\",\" \", IF(COUNTRY_INFO!A14=0,\" \",COUNTRY_INFO!A14))","v":"Zanzibar"},{"$f":"IF(INTRO!$E$43=\"Non-endemic\",\" \", IF(COUNTRY_INFO!B14=0,\" \",COUNTRY_INFO!B14))","v":"Kaskazini Unguja"},{"$f":"IF(INTRO!$E$43=\"Non-endemic\",\" \", IF(COUNTRY_INFO!C14=0,\" \",COUNTRY_INFO!C14))","v":"Kaskazini B "},35160,20345,55505,{"$f":"IF(INTRO!$E$43=\"Non-endemic\", \"Not required\", COUNTRY_INFO!S14)","v":1},"Yes",{"$f":"IF($D14=0,0,IF(AND($G14>0,$H14<>\"Yes\"),D14,IF(AND($G14>0,$H14=\"Yes\"),COUNTRY_INFO!$F14,0)))","v":26950},null,20345,47295,67375,61035,67375,null,67375,68]
[{"$f":"IF(INTRO!$E$43=\"Non-endemic\",\" \", IF(COUNTRY_INFO!A15=0,\" \",COUNTRY_INFO!A15))","v":"Zanzibar"},{"$f":"IF(INTRO!$E$43=\"Non-endemic\",\" \", IF(COUNTRY_INFO!B15=0,\" \",COUNTRY_INFO!B15))","v":"Kusini Unguja"},{"$f":"IF(INTRO!$E$43=\"Non-endemic\",\" \", IF(COUNTRY_INFO!C15=0,\" \",COUNTRY_INFO!C15))","v":"Kati "},30519,4593,35112,{"$f":"IF(INTRO!$E$43=\"Non-endemic\", \"Not required\", COUNTRY_INFO!S15)","v":1},"Yes",{"$f":"IF($D15=0,0,IF(AND($G15>0,$H15<>\"Yes\"),D15,IF(AND($G15>0,$H15=\"Yes\"),COUNTRY_INFO!$F15,0)))","v":25394},null,4593,29987,63485,13779,63485,null,63485,64]
[{"$f":"IF(INTRO!$E$43=\"Non-endemic\",\" \", IF(COUNTRY_INFO!A16=0,\" \",COUNTRY_INFO!A16))","v":"Zanzibar"},{"$f":"IF(INTRO!$E$43=\"Non-endemic\",\" \", IF(COUNTRY_INFO!B16=0,\" \",COUNTRY_INFO!B16))","v":"Kusini Unguja"},{"$f":"IF(INTRO!$E$43=\"Non-endemic\",\" \", IF(COUNTRY_INFO!C16=0,\" \",COUNTRY_INFO!C16))","v":"Kusini "},9701,0,9701,{"$f":"IF(INTRO!$E$43=\"Non-endemic\", \"Not required\", COUNTRY_INFO!S16)","v":0},"Yes",{"$f":"IF($D16=0,0,IF(AND($G16>0,$H16<>\"Yes\"),D16,IF(AND($G16>0,$H16=\"Yes\"),COUNTRY_INFO!$F16,0)))","v":0},null,0,0,0,0,0,null,0,0]
[{"$f":"IF(INTRO!$E$43=\"Non-endemic\",\" \", IF(COUNTRY_INFO!A17=0,\" \",COUNTRY_INFO!A17))","v":"Zanzibar"},{"$f":"IF(INTRO!$E$43=\"Non-endemic\",\" \", IF(COUNTRY_INFO!B17=0,\" \",COUNTRY_INFO!B17))","v":"Mjini Magharibi"},{"$f":"IF(INTRO!$E$43=\"Non-endemic\",\" \", IF(COUNTRY_INFO!C17=0,\" \",COUNTRY_INFO!C17))","v":"Mjini "},78453,0,78453,{"$f":"IF(INTRO!$E$43=\"Non-endemic\", \"Not required\", COUNTRY_INFO!S17)","v":0},"Yes",{"$f":"IF($D17=0,0,IF(AND($G17>0,$H17<>\"Yes\"),D17,IF(AND($G17>0,$H17=\"Yes\"),COUNTRY_INFO!$F17,0)))","v":0},null,0,0,0,0,0,null,0,0]
[{"$f":"IF(INTRO!$E$43=\"Non-endemic\",\" \", IF(COUNTRY_INFO!A18=0,\" \",COUNTRY_INFO!A18))","v":"Zanzibar"},{"$f":"IF(INTRO!$E$43=\"Non-endemic\",\" \", IF(COUNTRY_INFO!B18=0,\" \",COUNTRY_INFO!B18))","v":"Mjini Magharibi"},{"$f":"IF(INTRO!$E$43=\"Non-endemic\",\" \", IF(COUNTRY_INFO!C18=0,\" \",COUNTRY_INFO!C18))","v":"Magharibi A "},69175,8009,77184,{"$f":"IF(INTRO!$E$43=\"Non-endemic\", \"Not required\", COUNTRY_INFO!S18)","v":1},"Yes",{"$f":"IF($D18=0,0,IF(AND($G18>0,$H18<>\"Yes\"),D18,IF(AND($G18>0,$H18=\"Yes\"),COUNTRY_INFO!$F18,0)))","v":56361},null,8009,64370,140902.5,24027,140902.5,null,140902.5,141]
[{"$f":"IF(INTRO!$E$43=\"Non-endemic\",\" \", IF(COUNTRY_INFO!A19=0,\" \",COUNTRY_INFO!A19))","v":"Zanzibar"},{"$f":"IF(INTRO!$E$43=\"Non-endemic\",\" \", IF(COUNTRY_INFO!B19=0,\" \",COUNTRY_INFO!B19))","v":"Mjini Magharibi"},{"$f":"IF(INTRO!$E$43=\"Non-endemic\",\" \", IF(COUNTRY_INFO!C19=0,\" \",COUNTRY_INFO!C19))","v":"Magharibi B"},88824,135098,223922,{"$f":"IF(INTRO!$E$43=\"Non-endemic\", \"Not required\", COUNTRY_INFO!S19)","v":1},"Yes",{"$f":"IF($D19=0,0,IF(AND($G19>0,$H19<>\"Yes\"),D19,IF(AND($G19>0,$H19=\"Yes\"),COUNTRY_INFO!$F19,0)))","v":73153},null,135098,208251,182882.5,405294,182882.5,null,182882.5,183]

{"sheet":"IVM","index":5,"n_rows":19,"n_cols":17,"rows_kept":19,"cut":false,"hidden":false,"merged":[[6,10,7,10],[6,11,7,11],[6,12,7,12],[6,13,7,13],[3,0,3,2],[3,4,3,5],[6,4,7,4],[6,5,7,5],[5,10,5,16],[6,0,7,0],[6,1,7,1],[6,2,7,2],[6,7,6,9],[5,0,5,2],[5,4,5,5],[5,6,5,9],[6,14,7,14],[5,3,7,3],[6,15,7,15],[6,16,7,16]]}
["Ivermectin (IVM)"]
["Administrative structure, eligible population by age group, treatment plan and information about tablets"]
[]
["TOTAL",null,null,{"$f":"SUM(D$9:D$1000)","v":1518213},null,null,{"$f":"SUM(G$9:G$1000)","v":1518213},0,0,0,4250996.3999999994,0,0,4250996.3999999994,0,4250996.3999999994,8508]
[]
["Country administrative structure",null,null,"Population requiring treatment with IVM","Treatment plan",null,"Target population",null,null,null,"Ivermectin (IVM)"]
["Country","Province/State","District",null,"LF","Oncho","LF","Oncho",null,null,"LF only","Oncho only","LF+Oncho","Total required","Remaining in stock","Tablets to be procured","Bottles (3mg)\n500 tablets"]
[null,null,null,null,null,null,null,"in the district","in villages","total"]
[{"$f":"IF(INTRO!$E$39=\"Non-endemic\",\" \",IF(COUNTRY_INFO!A9=0,\" \",COUNTRY_INFO!A9))","v":"Zanzibar"},{"$f":"IF(INTRO!$E$39=\"Non-endemic\",\" \",IF(COUNTRY_INFO!B9=0,\" \",COUNTRY_INFO!B9))","v":"Kusini Pemba"},{"$f":"IF(INTRO!$E$39=\"Non-endemic\",\" \",IF(COUNTRY_INFO!C9=0,\" \",COUNTRY_INFO!C9))","v":"Mkoani"},{"$f":"IF(INTRO!$E$39=\"Non-endemic\",0,IF(INTRO!$E$39=\"Endemic but PC is not required\",IF(COUNTRY_INFO!$H9=1,COUNTRY_INFO!F9+COUNTRY_INFO!G9,0),IF(COUNTRY_INFO!$H9=1,COUNTRY_INFO!F9+COUNTRY_INFO!G9,IF(COUNTRY_INFO!$I9=1,IF(COUNTRY_INFO!M9>=(COUNTRY_INFO!F9+COUNTRY_INFO!G9),COUNTRY_INFO!F9+COUNTRY_INFO!G9,COUNTRY_INFO!$M9),0))))","v":128595},{"$f":"IF(AND(INTRO!$E$39=\"Non-endemic\",INTRO!$E$37=\"Non-endemic\"),\"Not required\",IF(INTRO!$E$39=\"Non-endemic\",\"Treat with DEC\",COUNTRY_INFO!P9))","v":1},{"$f":"IF(INTRO!$E$39<>\"Non-endemic\",COUNTRY_INFO!Q9,\"Not required\")","v":0},{"$f":"IF(COUNTRY_INFO!H9=1, IF($E9=1,$D9, 0),0)","v":128595},{"$f":"IF(INTRO!$E$39<>\"Endemic\",0, IF(AND(COUNTRY_INFO!$I9=1,$F9<>0),IF(COUNTRY_INFO!M9>=(COUNTRY_INFO!F9+COUNTRY_INFO!G9),COUNTRY_INFO!F9+COUNTRY_INFO!G9,COUNTRY_INFO!$M9), 0))","v":0},null,{"$f":"IF(I9=0,H9,IF(I9>H9,H9,I9))","v":0},{"$f":"IF(G9<J9,0,IF($E9=1, (G9-J9)*2.8, 0))","v":360066},{"$f":"IF($E9<$F9, J9*(F9-E9)*2.8, 0)","v":0},{"$f":"IF(AND($E9=1, $F9<>0), J9*2.8, 0)","v":0},{"$f":"SUM(K9:M9)","v":360066},null,{"$f":"IF($N9>$O9,$N9-$O9,0)","v":360066},{"$f":"ROUNDUP($N9/500,0)","v":721}]
[{"$f":"IF(INTRO!$E$39=\"Non-endemic\",\" \",IF(COUNTRY_INFO!A10=0,\" \",COUNTRY_INFO!A10))","v":"Zanzibar"},{"$f":"IF(INTRO!$E$39=\"Non-endemic\",\" \",IF(COUNTRY_INFO!B10=0,\" \",COUNTRY_INFO!B10))","v":"Kusini Pemba"},{"$f":"IF(INTRO!$E$39=\"Non-endemic\",\" \",IF(COUNTRY_INFO!C10=0,\" \",COUNTRY_INFO!C10))","v":"Chake Chake"},{"$f":"IF(INTRO!$E$39=\"Non-endemic\",0,IF(INTRO!$E$39=\"Endemic but PC is not required\",IF(COUNTRY_INFO!$H10=1,COUNTRY_INFO!F10+COUNTRY_INFO!G10,0),IF(COUNTRY_INFO!$H10=1,COUNTRY_INFO!F10+COUNTRY_INFO!G10,IF(COUNTRY_INFO!$I10=1,IF(COUNTRY_INFO!M10>=(COUNTRY_INFO!F10+COUNTRY_INFO!G10),COUNTRY_INFO!F10+COUNTRY_INFO!G10,COUNTRY_INFO!$M10),0))))","v":128474},{"$f":"IF(AND(INTRO!$E$39=\"Non-endemic\",INTRO!$E$37=\"Non-endemic\"),\"Not required\",IF(INTRO!$E$39=\"Non-endemic\",\"Treat with DEC\",COUNTRY_INFO!P10))","v":1},{"$f":"IF(INTRO!$E$39<>\"Non-endemic\",COUNTRY_INFO!Q10,\"Not required\")","v":0},{"$f":"IF(COUNTRY_INFO!H10=1, IF($E10=1,$D10, 0),0)","v":128474},{"$f":"IF(INTRO!$E$39<>\"Endemic\",0, IF(AND(COUNTRY_INFO!$I10=1,$F10<>0),IF(COUNTRY_INFO!M10>=(COUNTRY_INFO!F10+COUNTRY_INFO!G10),COUNTRY_INFO!F10+COUNTRY_INFO!G10,COUNTRY_INFO!$M10), 0))","v":0},null,0,359727.19999999995,0,0,359727.19999999995,null,359727.19999999995,720]
[{"$f":"IF(INTRO!$E$39=\"Non-endemic\",\" \",IF(COUNTRY_INFO!A11=0,\" \",COUNTRY_INFO!A11))","v":"Zanzibar"},{"$f":"IF(INTRO!$E$39=\"Non-endemic\",\" \",IF(COUNTRY_INFO!B11=0,\" \",COUNTRY_INFO!B11))","v":"Kaskazini Pemba"},{"$f":"IF(INTRO!$E$39=\"Non-endemic\",\" \",IF(COUNTRY_INFO!C11=0,\" \",COUNTRY_INFO!C11))","v":"Wete"},{"$f":"IF(INTRO!$E$39=\"Non-endemic\",0,IF(INTRO!$E$39=\"Endemic but PC is not required\",IF(COUNTRY_INFO!$H11=1,COUNTRY_INFO!F11+COUNTRY_INFO!G11,0),IF(COUNTRY_INFO!$H11=1,COUNTRY_INFO!F11+COUNTRY_INFO!G11,IF(COUNTRY_INFO!$I11=1,IF(COUNTRY_INFO!M11>=(COUNTRY_INFO!F11+COUNTRY_INFO!G11),COUNTRY_INFO!F11+COUNTRY_INFO!G11,COUNTRY_INFO!$M11),0))))","v":140659},{"$f":"IF(AND(INTRO!$E$39=\"Non-endemic\",INTRO!$E$37=\"Non-endemic\"),\"Not required\",IF(INTRO!$E$39=\"Non-endemic\",\"Treat with DEC\",COUNTRY_INFO!P11))","v":1},{"$f":"IF(INTRO!$E$39<>\"Non-endemic\",COUNTRY_INFO!Q11,\"Not required\")","v":0},{"$f":"IF(COUNTRY_INFO!H11=1, IF($E11=1,$D11, 0),0)","v":140659},{"$f":"IF(INTRO!$E$39<>\"Endemic\",0, IF(AND(COUNTRY_INFO!$I11=1,$F11<>0),IF(COUNTRY_INFO!M11>=(COUNTRY_INFO!F11+COUNTRY_INFO!G11),COUNTRY_INFO!F11+COUNTRY_INFO!G11,COUNTRY_INFO!$M11), 0))","v":0},null,0,393845.19999999995,0,0,393845.19999999995,null,393845.19999999995,788]
[{"$f":"IF(INTRO!$E$39=\"Non-endemic\",\" \",IF(COUNTRY_INFO!A12=0,\" \",COUNTRY_INFO!A12))","v":"Zanzibar"},{"$f":"IF(INTRO!$E$39=\"Non-endemic\",\" \",IF(COUNTRY_INFO!B12=0,\" \",COUNTRY_INFO!B12))","v":"Kaskazini Pemba"},{"$f":"IF(INTRO!$E$39=\"Non-endemic\",\" \",IF(COUNTRY_INFO!C12=0,\" \",COUNTRY_INFO!C12))","v":"Micheweni"},{"$f":"IF(INTRO!$E$39=\"Non-endemic\",0,IF(INTRO!$E$39=\"Endemic but PC is not required\",IF(COUNTRY_INFO!$H12=1,COUNTRY_INFO!F12+COUNTRY_INFO!G12,0),IF(COUNTRY_INFO!$H12=1,COUNTRY_INFO!F12+COUNTRY_INFO!G12,IF(COUNTRY_INFO!$I12=1,IF(COUNTRY_INFO!M12>=(COUNTRY_INFO!F12+COUNTRY_INFO!G12),COUNTRY_INFO!F12+COUNTRY_INFO!G12,COUNTRY_INFO!$M12),0))))","v":138173},{"$f":"IF(AND(INTRO!$E$39=\"Non-endemic\",INTRO!$E$37=\"Non-endemic\"),\"Not required\",IF(INTRO!$E$39=\"Non-endemic\",\"Treat with DEC\",COUNTRY_INFO!P12))","v":1},{"$f":"IF(INTRO!$E$39<>\"Non-endemic\",COUNTRY_INFO!Q12,\"Not required\")","v":0},{"$f":"IF(COUNTRY_INFO!H12=1, IF($E12=1,$D12, 0),0)","v":138173},{"$f":"IF(INTRO!$E$39<>\"Endemic\",0, IF(AND(COUNTRY_INFO!$I12=1,$F12<>0),IF(COUNTRY_INFO!M12>=(COUNTRY_INFO!F12+COUNTRY_INFO!G12),COUNTRY_INFO!F12+COUNTRY_INFO!G12,COUNTRY_INFO!$M12), 0))","v":0},null,0,386884.39999999997,0,0,386884.39999999997,null,386884.39999999997,774]
[{"$f":"IF(INTRO!$E$39=\"Non-endemic\",\" \",IF(COUNTRY_INFO!A13=0,\" \",COUNTRY_INFO!A13))","v":"Zanzibar"},{"$f":"IF(INTRO!$E$39=\"Non-endemic\",\" \",IF(COUNTRY_INFO!B13=0,\" \",COUNTRY_INFO!B13))","v":"Kaskazini Unguja"},{"$f":"IF(INTRO!$E$39=\"Non-endemic\",\" \",IF(COUNTRY_INFO!C13=0,\" \",COUNTRY_INFO!C13))","v":"Kaskazini A"},{"$f":"IF(INTRO!$E$39=\"Non-endemic\",0,IF(INTRO!$E$39=\"Endemic but PC is not required\",IF(COUNTRY_INFO!$H13=1,COUNTRY_INFO!F13+COUNTRY_INFO!G13,0),IF(COUNTRY_INFO!$H13=1,COUNTRY_INFO!F13+COUNTRY_INFO!G13,IF(COUNTRY_INFO!$I13=1,IF(COUNTRY_INFO!M13>=(COUNTRY_INFO!F13+COUNTRY_INFO!G13),COUNTRY_INFO!F13+COUNTRY_INFO!G13,COUNTRY_INFO!$M13),0))))","v":116441},{"$f":"IF(AND(INTRO!$E$39=\"Non-endemic\",INTRO!$E$37=\"Non-endemic\"),\"Not required\",IF(INTRO!$E$39=\"Non-endemic\",\"Treat with DEC\",COUNTRY_INFO!P13))","v":1},{"$f":"IF(INTRO!$E$39<>\"Non-endemic\",COUNTRY_INFO!Q13,\"Not required\")","v":0},{"$f":"IF(COUNTRY_INFO!H13=1, IF($E13=1,$D13, 0),0)","v":116441},{"$f":"IF(INTRO!$E$39<>\"Endemic\",0, IF(AND(COUNTRY_INFO!$I13=1,$F13<>0),IF(COUNTRY_INFO!M13>=(COUNTRY_INFO!F13+COUNTRY_INFO!G13),COUNTRY_INFO!F13+COUNTRY_INFO!G13,COUNTRY_INFO!$M13), 0))","v":0},null,0,326034.8,0,0,326034.8,null,326034.8,653]
[{"$f":"IF(INTRO!$E$39=\"Non-endemic\",\" \",IF(COUNTRY_INFO!A14=0,\" \",COUNTRY_INFO!A14))","v":"Zanzibar"},{"$f":"IF(INTRO!$E$39=\"Non-endemic\",\" \",IF(COUNTRY_INFO!B14=0,\" \",COUNTRY_INFO!B14))","v":"Kaskazini Unguja"},{"$f":"IF(INTRO!$E$39=\"Non-endemic\",\" \",IF(COUNTRY_INFO!C14=0,\" \",COUNTRY_INFO!C14))","v":"Kaskazini B "},{"$f":"IF(INTRO!$E$39=\"Non-endemic\",0,IF(INTRO!$E$39=\"Endemic but PC is not required\",IF(COUNTRY_INFO!$H14=1,COUNTRY_INFO!F14+COUNTRY_INFO!G14,0),IF(COUNTRY_INFO!$H14=1,COUNTRY_INFO!F14+COUNTRY_INFO!G14,IF(COUNTRY_INFO!$I14=1,IF(COUNTRY_INFO!M14>=(COUNTRY_INFO!F14+COUNTRY_INFO!G14),COUNTRY_INFO!F14+COUNTRY_INFO!G14,COUNTRY_INFO!$M14),0))))","v":84558},{"$f":"IF(AND(INTRO!$E$39=\"Non-endemic\",INTRO!$E$37=\"Non-endemic\"),\"Not required\",IF(INTRO!$E$39=\"Non-endemic\",\"Treat with DEC\",COUNTRY_INFO!P14))","v":1},{"$f":"IF(INTRO!$E$39<>\"Non-endemic\",COUNTRY_INFO!Q14,\"Not required\")","v":0},{"$f":"IF(COUNTRY_INFO!H14=1, IF($E14=1,$D14, 0),0)","v":84558},{"$f":"IF(INTRO!$E$39<>\"Endemic\",0, IF(AND(COUNTRY_INFO!$I14=1,$F14<>0),IF(COUNTRY_INFO!M14>=(COUNTRY_INFO!F14+COUNTRY_INFO!G14),COUNTRY_INFO!F14+COUNTRY_INFO!G14,COUNTRY_INFO!$M14), 0))","v":0},null,0,236762.4,0,0,236762.4,null,236762.4,474]
[{"$f":"IF(INTRO!$E$39=\"Non-endemic\",\" \",IF(COUNTRY_INFO!A15=0,\" \",COUNTRY_INFO!A15))","v":"Zanzibar"},{"$f":"IF(INTRO!$E$39=\"Non-endemic\",\" \",IF(COUNTRY_INFO!B15=0,\" \",COUNTRY_INFO!B15))","v":"Kusini Unguja"},{"$f":"IF(INTRO!$E$39=\"Non-endemic\",\" \",IF(COUNTRY_INFO!C15=0,\" \",COUNTRY_INFO!C15))","v":"Kati "},{"$f":"IF(INTRO!$E$39=\"Non-endemic\",0,IF(INTRO!$E$39=\"Endemic but PC is not required\",IF(COUNTRY_INFO!$H15=1,COUNTRY_INFO!F15+COUNTRY_INFO!G15,0),IF(COUNTRY_INFO!$H15=1,COUNTRY_INFO!F15+COUNTRY_INFO!G15,IF(COUNTRY_INFO!$I15=1,IF(COUNTRY_INFO!M15>=(COUNTRY_INFO!F15+COUNTRY_INFO!G15),COUNTRY_INFO!F15+COUNTRY_INFO!G15,COUNTRY_INFO!$M15),0))))","v":79676},{"$f":"IF(AND(INTRO!$E$39=\"Non-endemic\",INTRO!$E$37=\"Non-endemic\"),\"Not required\",IF(INTRO!$E$39=\"Non-endemic\",\"Treat with DEC\",COUNTRY_INFO!P15))","v":1},{"$f":"IF(INTRO!$E$39<>\"Non-endemic\",COUNTRY_INFO!Q15,\"Not required\")","v":0},{"$f":"IF(COUNTRY_INFO!H15=1, IF($E15=1,$D15, 0),0)","v":79676},{"$f":"IF(INTRO!$E$39<>\"Endemic\",0, IF(AND(COUNTRY_INFO!$I15=1,$F15<>0),IF(COUNTRY_INFO!M15>=(COUNTRY_INFO!F15+COUNTRY_INFO!G15),COUNTRY_INFO!F15+COUNTRY_INFO!G15,COUNTRY_INFO!$M15), 0))","v":0},null,0,223092.8,0,0,223092.8,null,223092.8,447]
[{"$f":"IF(INTRO!$E$39=\"Non-endemic\",\" \",IF(COUNTRY_INFO!A16=0,\" \",COUNTRY_INFO!A16))","v":"Zanzibar"},{"$f":"IF(INTRO!$E$39=\"Non-endemic\",\" \",IF(COUNTRY_INFO!B16=0,\" \",COUNTRY_INFO!B16))","v":"Kusini Unguja"},{"$f":"IF(INTRO!$E$39=\"Non-endemic\",\" \",IF(COUNTRY_INFO!C16=0,\" \",COUNTRY_INFO!C16))","v":"Kusini "},{"$f":"IF(INTRO!$E$39=\"Non-endemic\",0,IF(INTRO!$E$39=\"Endemic but PC is not required\",IF(COUNTRY_INFO!$H16=1,COUNTRY_INFO!F16+COUNTRY_INFO!G16,0),IF(COUNTRY_INFO!$H16=1,COUNTRY_INFO!F16+COUNTRY_INFO!G16,IF(COUNTRY_INFO!$I16=1,IF(COUNTRY_INFO!M16>=(COUNTRY_INFO!F16+COUNTRY_INFO!G16),COUNTRY_INFO!F16+COUNTRY_INFO!G16,COUNTRY_INFO!$M16),0))))","v":42637},{"$f":"IF(AND(INTRO!$E$39=\"Non-endemic\",INTRO!$E$37=\"Non-endemic\"),\"Not required\",IF(INTRO!$E$39=\"Non-endemic\",\"Treat with DEC\",COUNTRY_INFO!P16))","v":1},{"$f":"IF(INTRO!$E$39<>\"Non-endemic\",COUNTRY_INFO!Q16,\"Not required\")","v":0},{"$f":"IF(COUNTRY_INFO!H16=1, IF($E16=1,$D16, 0),0)","v":42637},{"$f":"IF(INTRO!$E$39<>\"Endemic\",0, IF(AND(COUNTRY_INFO!$I16=1,$F16<>0),IF(COUNTRY_INFO!M16>=(COUNTRY_INFO!F16+COUNTRY_INFO!G16),COUNTRY_INFO!F16+COUNTRY_INFO!G16,COUNTRY_INFO!$M16), 0))","v":0},null,0,119383.59999999999,0,0,119383.59999999999,null,119383.59999999999,239]
[{"$f":"IF(INTRO!$E$39=\"Non-endemic\",\" \",IF(COUNTRY_INFO!A17=0,\" \",COUNTRY_INFO!A17))","v":"Zanzibar"},{"$f":"IF(INTRO!$E$39=\"Non-endemic\",\" \",IF(COUNTRY_INFO!B17=0,\" \",COUNTRY_INFO!B17))","v":"Mjini Magharibi"},{"$f":"IF(INTRO!$E$39=\"Non-endemic\",\" \",IF(COUNTRY_INFO!C17=0,\" \",COUNTRY_INFO!C17))","v":"Mjini "},{"$f":"IF(INTRO!$E$39=\"Non-endemic\",0,IF(INTRO!$E$39=\"Endemic but PC is not required\",IF(COUNTRY_INFO!$H17=1,COUNTRY_INFO!F17+COUNTRY_INFO!G17,0),IF(COUNTRY_INFO!$H17=1,COUNTRY_INFO!F17+COUNTRY_INFO!G17,IF(COUNTRY_INFO!$I17=1,IF(COUNTRY_INFO!M17>=(COUNTRY_INFO!F17+COUNTRY_INFO!G17),COUNTRY_INFO!F17+COUNTRY_INFO!G17,COUNTRY_INFO!$M17),0))))","v":252644},{"$f":"IF(AND(INTRO!$E$39=\"Non-endemic\",INTRO!$E$37=\"Non-endemic\"),\"Not required\",IF(INTRO!$E$39=\"Non-endemic\",\"Treat with DEC\",COUNTRY_INFO!P17))","v":1},{"$f":"IF(INTRO!$E$39<>\"Non-endemic\",COUNTRY_INFO!Q17,\"Not required\")","v":0},{"$f":"IF(COUNTRY_INFO!H17=1, IF($E17=1,$D17, 0),0)","v":252644},{"$f":"IF(INTRO!$E$39<>\"Endemic\",0, IF(AND(COUNTRY_INFO!$I17=1,$F17<>0),IF(COUNTRY_INFO!M17>=(COUNTRY_INFO!F17+COUNTRY_INFO!G17),COUNTRY_INFO!F17+COUNTRY_INFO!G17,COUNTRY_INFO!$M17), 0))","v":0},null,0,707403.2,0,0,707403.2,null,707403.2,1415]
[{"$f":"IF(INTRO!$E$39=\"Non-endemic\",\" \",IF(COUNTRY_INFO!A18=0,\" \",COUNTRY_INFO!A18))","v":"Zanzibar"},{"$f":"IF(INTRO!$E$39=\"Non-endemic\",\" \",IF(COUNTRY_INFO!B18=0,\" \",COUNTRY_INFO!B18))","v":"Mjini Magharibi"},{"$f":"IF(INTRO!$E$39=\"Non-endemic\",\" \",IF(COUNTRY_INFO!C18=0,\" \",COUNTRY_INFO!C18))","v":"Magharibi A "},{"$f":"IF(INTRO!$E$39=\"Non-endemic\",0,IF(INTRO!$E$39=\"Endemic but PC is not required\",IF(COUNTRY_INFO!$H18=1,COUNTRY_INFO!F18+COUNTRY_INFO!G18,0),IF(COUNTRY_INFO!$H18=1,COUNTRY_INFO!F18+COUNTRY_INFO!G18,IF(COUNTRY_INFO!$I18=1,IF(COUNTRY_INFO!M18>=(COUNTRY_INFO!F18+COUNTRY_INFO!G18),COUNTRY_INFO!F18+COUNTRY_INFO!G18,COUNTRY_INFO!$M18),0))))","v":176835},{"$f":"IF(AND(INTRO!$E$39=\"Non-endemic\",INTRO!$E$37=\"Non-endemic\"),\"Not required\",IF(INTRO!$E$39=\"Non-endemic\",\"Treat with DEC\",COUNTRY_INFO!P18))","v":1},{"$f":"IF(INTRO!$E$39<>\"Non-endemic\",COUNTRY_INFO!Q18,\"Not required\")","v":0},{"$f":"IF(COUNTRY_INFO!H18=1, IF($E18=1,$D18, 0),0)","v":176835},{"$f":"IF(INTRO!$E$39<>\"Endemic\",0, IF(AND(COUNTRY_INFO!$I18=1,$F18<>0),IF(COUNTRY_INFO!M18>=(COUNTRY_INFO!F18+COUNTRY_INFO!G18),COUNTRY_INFO!F18+COUNTRY_INFO!G18,COUNTRY_INFO!$M18), 0))","v":0},null,0,495137.99999999994,0,0,495137.99999999994,null,495137.99999999994,991]
[{"$f":"IF(INTRO!$E$39=\"Non-endemic\",\" \",IF(COUNTRY_INFO!A19=0,\" \",COUNTRY_INFO!A19))","v":"Zanzibar"},{"$f":"IF(INTRO!$E$39=\"Non-endemic\",\" \",IF(COUNTRY_INFO!B19=0,\" \",COUNTRY_INFO!B19))","v":"Mjini Magharibi"},{"$f":"IF(INTRO!$E$39=\"Non-endemic\",\" \",IF(COUNTRY_INFO!C19=0,\" \",COUNTRY_INFO!C19))","v":"Magharibi B"},{"$f":"IF(INTRO!$E$39=\"Non-endemic\",0,IF(INTRO!$E$39=\"Endemic but PC is not required\",IF(COUNTRY_INFO!$H19=1,COUNTRY_INFO!F19+COUNTRY_INFO!G19,0),IF(COUNTRY_INFO!$H19=1,COUNTRY_INFO!F19+COUNTRY_INFO!G19,IF(COUNTRY_INFO!$I19=1,IF(COUNTRY_INFO!M19>=(COUNTRY_INFO!F19+COUNTRY_INFO!G19),COUNTRY_INFO!F19+COUNTRY_INFO!G19,COUNTRY_INFO!$M19),0))))","v":229521},{"$f":"IF(AND(INTRO!$E$39=\"Non-endemic\",INTRO!$E$37=\"Non-endemic\"),\"Not required\",IF(INTRO!$E$39=\"Non-endemic\",\"Treat with DEC\",COUNTRY_INFO!P19))","v":1},{"$f":"IF(INTRO!$E$39<>\"Non-endemic\",COUNTRY_INFO!Q19,\"Not required\")","v":0},{"$f":"IF(COUNTRY_INFO!H19=1, IF($E19=1,$D19, 0),0)","v":229521},{"$f":"IF(INTRO!$E$39<>\"Endemic\",0, IF(AND(COUNTRY_INFO!$I19=1,$F19<>0),IF(COUNTRY_INFO!M19>=(COUNTRY_INFO!F19+COUNTRY_INFO!G19),COUNTRY_INFO!F19+COUNTRY_INFO!G19,COUNTRY_INFO!$M19), 0))","v":0},null,0,642658.79999999993,0,0,642658.79999999993,null,642658.79999999993,1286]

{"sheet":"IVM+","index":6,"n_rows":19,"n_cols":9,"rows_kept":19,"cut":false,"hidden":true,"merged":[[6,5,7,5],[6,6,7,6],[6,7,7,7],[6,8,7,8],[5,4,7,4],[5,5,5,8],[6,0,7,0],[6,1,7,1],[6,2,7,2],[6,3,7,3],[3,0,3,2],[5,0,5,2]]}
["Ivermectin (IVM) for IDA therapy"]
["Administrative structure, eligible population by age group, treatment plan and information about tablets"]
[]
["TOTAL",null,null,null,{"$f":"SUM(E$9:E$1000)","v":0},0,0,0,0]
[]
["Country administrative structure",null,null,"Treatment plan","Population targeted for treatment with IVM \n(IDA therapy)","Ivermectin (IVM)"]
["Country","Province/State","District","LF",null,"Total required","Remaining in stock","Tablets to be procured","Bottles (3mg)\n500 tablets"]
[]
[{"$f":"IF(AND(INTRO!$E$37=\"Endemic\",INTRO!$E$39=\"Non-endemic\"),IF(COUNTRY_INFO!A9=0,\" \",COUNTRY_INFO!A9),\" \")","v":" "},{"$f":"IF(AND(INTRO!$E$37=\"Endemic\",INTRO!$E$39=\"Non-endemic\"),IF(COUNTRY_INFO!B9=0,\" \",COUNTRY_INFO!B9),\" \")","v":" "},{"$f":"IF(AND(INTRO!$E$37=\"Endemic\",INTRO!$E$39=\"Non-endemic\"),IF(COUNTRY_INFO!C9=0,\" \",COUNTRY_INFO!C9),\" \")","v":" "},{"$f":"IF(COUNTRY_INFO!T9<>\"\",COUNTRY_INFO!P9,0)","v":0},{"$f":"IF(AND(COUNTRY_INFO!T9<>\"\",COUNTRY_INFO!$H9=1),COUNTRY_INFO!F9+COUNTRY_INFO!G9,0)","v":0},{"$f":"E9*2.8","v":0},null,{"$f":"IF($F9>$G9,$F9-$G9,0)","v":0},{"$f":"ROUNDUP($F9/500,0)","v":0}]
[{"$f":"IF(AND(INTRO!$E$37=\"Endemic\",INTRO!$E$39=\"Non-endemic\"),IF(COUNTRY_INFO!A10=0,\" \",COUNTRY_INFO!A10),\" \")","v":" "},{"$f":"IF(AND(INTRO!$E$37=\"Endemic\",INTRO!$E$39=\"Non-endemic\"),IF(COUNTRY_INFO!B10=0,\" \",COUNTRY_INFO!B10),\" \")","v":" "},{"$f":"IF(AND(INTRO!$E$37=\"Endemic\",INTRO!$E$39=\"Non-endemic\"),IF(COUNTRY_INFO!C10=0,\" \",COUNTRY_INFO!C10),\" \")","v":" "},{"$f":"IF(COUNTRY_INFO!T10<>\"\",COUNTRY_INFO!P10,0)","v":0},{"$f":"IF(AND(COUNTRY_INFO!T10<>\"\",COUNTRY_INFO!$H10=1),COUNTRY_INFO!F10+COUNTRY_INFO!G10,0)","v":0},0,null,0,0]
[{"$f":"IF(AND(INTRO!$E$37=\"Endemic\",INTRO!$E$39=\"Non-endemic\"),IF(COUNTRY_INFO!A11=0,\" \",COUNTRY_INFO!A11),\" \")","v":" "},{"$f":"IF(AND(INTRO!$E$37=\"Endemic\",INTRO!$E$39=\"Non-endemic\"),IF(COUNTRY_INFO!B11=0,\" \",COUNTRY_INFO!B11),\" \")","v":" "},{"$f":"IF(AND(INTRO!$E$37=\"Endemic\",INTRO!$E$39=\"Non-endemic\"),IF(COUNTRY_INFO!C11=0,\" \",COUNTRY_INFO!C11),\" \")","v":" "},{"$f":"IF(COUNTRY_INFO!T11<>\"\",COUNTRY_INFO!P11,0)","v":0},{"$f":"IF(AND(COUNTRY_INFO!T11<>\"\",COUNTRY_INFO!$H11=1),COUNTRY_INFO!F11+COUNTRY_INFO!G11,0)","v":0},0,null,0,0]
[{"$f":"IF(AND(INTRO!$E$37=\"Endemic\",INTRO!$E$39=\"Non-endemic\"),IF(COUNTRY_INFO!A12=0,\" \",COUNTRY_INFO!A12),\" \")","v":" "},{"$f":"IF(AND(INTRO!$E$37=\"Endemic\",INTRO!$E$39=\"Non-endemic\"),IF(COUNTRY_INFO!B12=0,\" \",COUNTRY_INFO!B12),\" \")","v":" "},{"$f":"IF(AND(INTRO!$E$37=\"Endemic\",INTRO!$E$39=\"Non-endemic\"),IF(COUNTRY_INFO!C12=0,\" \",COUNTRY_INFO!C12),\" \")","v":" "},{"$f":"IF(COUNTRY_INFO!T12<>\"\",COUNTRY_INFO!P12,0)","v":0},{"$f":"IF(AND(COUNTRY_INFO!T12<>\"\",COUNTRY_INFO!$H12=1),COUNTRY_INFO!F12+COUNTRY_INFO!G12,0)","v":0},0,null,0,0]
[{"$f":"IF(AND(INTRO!$E$37=\"Endemic\",INTRO!$E$39=\"Non-endemic\"),IF(COUNTRY_INFO!A13=0,\" \",COUNTRY_INFO!A13),\" \")","v":" "},{"$f":"IF(AND(INTRO!$E$37=\"Endemic\",INTRO!$E$39=\"Non-endemic\"),IF(COUNTRY_INFO!B13=0,\" \",COUNTRY_INFO!B13),\" \")","v":" "},{"$f":"IF(AND(INTRO!$E$37=\"Endemic\",INTRO!$E$39=\"Non-endemic\"),IF(COUNTRY_INFO!C13=0,\" \",COUNTRY_INFO!C13),\" \")","v":" "},{"$f":"IF(COUNTRY_INFO!T13<>\"\",COUNTRY_INFO!P13,0)","v":0},{"$f":"IF(AND(COUNTRY_INFO!T13<>\"\",COUNTRY_INFO!$H13=1),COUNTRY_INFO!F13+COUNTRY_INFO!G13,0)","v":0},0,null,0,0]
[{"$f":"IF(AND(INTRO!$E$37=\"Endemic\",INTRO!$E$39=\"Non-endemic\"),IF(COUNTRY_INFO!A14=0,\" \",COUNTRY_INFO!A14),\" \")","v":" "},{"$f":"IF(AND(INTRO!$E$37=\"Endemic\",INTRO!$E$39=\"Non-endemic\"),IF(COUNTRY_INFO!B14=0,\" \",COUNTRY_INFO!B14),\" \")","v":" "},{"$f":"IF(AND(INTRO!$E$37=\"Endemic\",INTRO!$E$39=\"Non-endemic\"),IF(COUNTRY_INFO!C14=0,\" \",COUNTRY_INFO!C14),\" \")","v":" "},{"$f":"IF(COUNTRY_INFO!T14<>\"\",COUNTRY_INFO!P14,0)","v":0},{"$f":"IF(AND(COUNTRY_INFO!T14<>\"\",COUNTRY_INFO!$H14=1),COUNTRY_INFO!F14+COUNTRY_INFO!G14,0)","v":0},0,null,0,0]
[{"$f":"IF(AND(INTRO!$E$37=\"Endemic\",INTRO!$E$39=\"Non-endemic\"),IF(COUNTRY_INFO!A15=0,\" \",COUNTRY_INFO!A15),\" \")","v":" "},{"$f":"IF(AND(INTRO!$E$37=\"Endemic\",INTRO!$E$39=\"Non-endemic\"),IF(COUNTRY_INFO!B15=0,\" \",COUNTRY_INFO!B15),\" \")","v":" "},{"$f":"IF(AND(INTRO!$E$37=\"Endemic\",INTRO!$E$39=\"Non-endemic\"),IF(COUNTRY_INFO!C15=0,\" \",COUNTRY_INFO!C15),\" \")","v":" "},{"$f":"IF(COUNTRY_INFO!T15<>\"\",COUNTRY_INFO!P15,0)","v":0},{"$f":"IF(AND(COUNTRY_INFO!T15<>\"\",COUNTRY_INFO!$H15=1),COUNTRY_INFO!F15+COUNTRY_INFO!G15,0)","v":0},0,null,0,0]
[{"$f":"IF(AND(INTRO!$E$37=\"Endemic\",INTRO!$E$39=\"Non-endemic\"),IF(COUNTRY_INFO!A16=0,\" \",COUNTRY_INFO!A16),\" \")","v":" "},{"$f":"IF(AND(INTRO!$E$37=\"Endemic\",INTRO!$E$39=\"Non-endemic\"),IF(COUNTRY_INFO!B16=0,\" \",COUNTRY_INFO!B16),\" \")","v":" "},{"$f":"IF(AND(INTRO!$E$37=\"Endemic\",INTRO!$E$39=\"Non-endemic\"),IF(COUNTRY_INFO!C16=0,\" \",COUNTRY_INFO!C16),\" \")","v":" "},{"$f":"IF(COUNTRY_INFO!T16<>\"\",COUNTRY_INFO!P16,0)","v":0},{"$f":"IF(AND(COUNTRY_INFO!T16<>\"\",COUNTRY_INFO!$H16=1),COUNTRY_INFO!F16+COUNTRY_INFO!G16,0)","v":0},0,null,0,0]
[{"$f":"IF(AND(INTRO!$E$37=\"Endemic\",INTRO!$E$39=\"Non-endemic\"),IF(COUNTRY_INFO!A17=0,\" \",COUNTRY_INFO!A17),\" \")","v":" "},{"$f":"IF(AND(INTRO!$E$37=\"Endemic\",INTRO!$E$39=\"Non-endemic\"),IF(COUNTRY_INFO!B17=0,\" \",COUNTRY_INFO!B17),\" \")","v":" "},{"$f":"IF(AND(INTRO!$E$37=\"Endemic\",INTRO!$E$39=\"Non-endemic\"),IF(COUNTRY_INFO!C17=0,\" \",COUNTRY_INFO!C17),\" \")","v":" "},{"$f":"IF(COUNTRY_INFO!T17<>\"\",COUNTRY_INFO!P17,0)","v":0},{"$f":"IF(AND(COUNTRY_INFO!T17<>\"\",COUNTRY_INFO!$H17=1),COUNTRY_INFO!F17+COUNTRY_INFO!G17,0)","v":0},0,null,0,0]
[{"$f":"IF(AND(INTRO!$E$37=\"Endemic\",INTRO!$E$39=\"Non-endemic\"),IF(COUNTRY_INFO!A18=0,\" \",COUNTRY_INFO!A18),\" \")","v":" "},{"$f":"IF(AND(INTRO!$E$37=\"Endemic\",INTRO!$E$39=\"Non-endemic\"),IF(COUNTRY_INFO!B18=0,\" \",COUNTRY_INFO!B18),\" \")","v":" "},{"$f":"IF(AND(INTRO!$E$37=\"Endemic\",INTRO!$E$39=\"Non-endemic\"),IF(COUNTRY_INFO!C18=0,\" \",COUNTRY_INFO!C18),\" \")","v":" "},{"$f":"IF(COUNTRY_INFO!T18<>\"\",COUNTRY_INFO!P18,0)","v":0},{"$f":"IF(AND(COUNTRY_INFO!T18<>\"\",COUNTRY_INFO!$H18=1),COUNTRY_INFO!F18+COUNTRY_INFO!G18,0)","v":0},0,null,0,0]
[{"$f":"IF(AND(INTRO!$E$37=\"Endemic\",INTRO!$E$39=\"Non-endemic\"),IF(COUNTRY_INFO!A19=0,\" \",COUNTRY_INFO!A19),\" \")","v":" "},{"$f":"IF(AND(INTRO!$E$37=\"Endemic\",INTRO!$E$39=\"Non-endemic\"),IF(COUNTRY_INFO!B19=0,\" \",COUNTRY_INFO!B19),\" \")","v":" "},{"$f":"IF(AND(INTRO!$E$37=\"Endemic\",INTRO!$E$39=\"Non-endemic\"),IF(COUNTRY_INFO!C19=0,\" \",COUNTRY_INFO!C19),\" \")","v":" "},{"$f":"IF(COUNTRY_INFO!T19<>\"\",COUNTRY_INFO!P19,0)","v":0},{"$f":"IF(AND(COUNTRY_INFO!T19<>\"\",COUNTRY_INFO!$H19=1),COUNTRY_INFO!F19+COUNTRY_INFO!G19,0)","v":0},0,null,0,0]

{"sheet":"SUMMARY","index":7,"n_rows":93,"n_cols":8,"rows_kept":93,"cut":false,"hidden":false,"merged":[[97,1,97,7],[76,4,76,5],[75,2,75,3],[73,4,73,5],[74,4,74,5],[75,4,75,5],[73,2,73,3],[74,2,74,3],[92,1,92,7],[77,4,77,5],[87,1,87,7],[91,1,91,7],[86,1,86,7],[84,1,84,2],[84,3,84,7],[83,1,83,2],[77,2,77,3],[63,4,63,6],[64,4,64,6],[65,4,65,6],[66,4,66,6],[76,2,76,3],[0,1,0,7],[1,1,1,7],[2,1,2,5],[3,1,3,7],[4,1,4,7],[6,1,6,7],[5,2,5,5],[68,1,68,7],[57,1,57,7],[56,1,56,7],[25,1,25,7],[21,2,24,5],[30,2,30,3],[30,4,30,5],[30,6,30,7],[42,5,42,6],[43,5,43,6],[44,5,44,6],[58,1,58,7],[45,5,45,6],[40,5,40,6],[41,5,41,6],[9,1,10,1],[9,2,9,5],[9,6,9,7],[49,5,49,6],[82,2,82,7],[83,3,83,7],[50,5,50,6],[46,5,46,6],[47,5,47,6],[48,5,48,6],[62,4,62,6],[53,1,53,7],[59,1,59,7],[54,1,54,7],[55,1,55,7],[81,1,81,7],[61,1,61,7],[79,1,79,7],[80,1,80,7],[69,1,69,7]]}
[]
[null,"Joint request for selected PC medicines v.3.1"]
[]
[null,"This form constitutes an official government request to WHO for the supply of the PC medicines. It can be submitted any time before 15 August of the current year for distribution of medicines during the following year, but at least 6-8 months before the planned PC intervention(s) to allow time for reviewing and approval of the request, placing order, manufacturing PC medicines and shipment to the country."]
[]
[null,"Country",{"$f":"IF(INTRO!$E$33<>0,INTRO!$E$33,\" \")","v":"Zanzibar"},null,null,null,"Year",{"$f":"IF(INTRO!$E$35<>0,INTRO!$E$35,\" \")","v":2023}]
[]
[null,"Information on PC medicines requested to WHO"]
[]
[null,"PC medicine","Number of tablets",null,null,null,"Total number of bottles"]
[null,null,"Required","In stock","In pipeline","Requested","Required","Requested"]
[null,"Albendazole for LF",1518213,113280,null,{"$f":"IF(C12>(D12+E12),C12-D12-E12, 0)","v":1404933},{"$f":"IF($C12=0,0, IF($B12=\"Albendazole for LF\", IF($C12=ALB_MBD!$I$4,ALB_MBD!$U$4,ROUNDUP($C12/200,0)), IF($B12=\"Albendazole for STH (SAC)\", IF($C12=ALB_MBD!$L$4,ALB_MBD!$X$4,ROUNDUP($C12/200,0)), IF($B12=\"Mebendazole (SAC)\", IF($C12=ALB_MBD!$P$4,ALB_MBD!$AA$4,ROUNDUP($C12/150,0)), IF($B12=\"Diethylcarbamazine citrate\", IF($C12=DEC!$J$4,DEC!$M$4,ROUNDUP($C12/1000,0)), IF($B12=\"Praziquantel (SAC)\", IF($C12=PZQ!$O$4,PZQ!$R$4,ROUNDUP($C12/1000,0)), IF($B12=\"Ivermectin\", IF($C12=IVM!$N$4,IVM!$Q$4,$C12/500+0.49),0)))))))","v":7597},{"$f":"IF($F12=0,0,IF(OR($B12=\"Albendazole for LF\",$B12=\"Albendazole for STH (SAC)\"),$G12-ROUNDUP(($E12+$D12)/200,0),IF($B12=\"Ivermectin\",$G12-ROUNDUP(($E12+$D12)/500,0),IF($B12=\"Mebendazole (SAC)\",$G12-ROUNDUP(($E12+$D12)/150,0),$G12-ROUNDUP(($E12+$D12)/1000,0)))))","v":7030}]
[null,"Albendazole for STH (SAC)",1518213,null,null,1518213,{"$f":"IF($C13=0,0, IF($B13=\"Albendazole for LF\", IF($C13=ALB_MBD!$I$4,ALB_MBD!$U$4,ROUNDUP($C13/200,0)), IF($B13=\"Albendazole for STH (SAC)\", IF($C13=ALB_MBD!$L$4,ALB_MBD!$X$4,ROUNDUP($C13/200,0)), IF($B13=\"Mebendazole (SAC)\", IF($C13=ALB_MBD!$P$4,ALB_MBD!$AA$4,ROUNDUP($C13/150,0)), IF($B13=\"Diethylcarbamazine citrate\", IF($C13=DEC!$J$4,DEC!$M$4,ROUNDUP($C13/1000,0)), IF($B13=\"Praziquantel (SAC)\", IF($C13=PZQ!$O$4,PZQ!$R$4,ROUNDUP($C13/1000,0)), IF($B13=\"Ivermectin\", IF($C13=IVM!$N$4,IVM!$Q$4,$C13/500+0.49),0)))))))","v":7592},7592]
[null,"Praziquantel (SAC)",3394086,251086,null,3143000,{"$f":"IF($C14=0,0, IF($B14=\"Albendazole for LF\", IF($C14=ALB_MBD!$I$4,ALB_MBD!$U$4,ROUNDUP($C14/200,0)), IF($B14=\"Albendazole for STH (SAC)\", IF($C14=ALB_MBD!$L$4,ALB_MBD!$X$4,ROUNDUP($C14/200,0)), IF($B14=\"Mebendazole (SAC)\", IF($C14=ALB_MBD!$P$4,ALB_MBD!$AA$4,ROUNDUP($C14/150,0)), IF($B14=\"Diethylcarbamazine citrate\", IF($C14=DEC!$J$4,DEC!$M$4,ROUNDUP($C14/1000,0)), IF($B14=\"Praziquantel (SAC)\", IF($C14=PZQ!$O$4,PZQ!$R$4,ROUNDUP($C14/1000,0)), IF($B14=\"Ivermectin\", IF($C14=IVM!$N$4,IVM!$Q$4,$C14/500+0.49),0)))))))","v":3395},3143]
[null,"Ivermectin",4250996.3999999994,152411,null,4098585.3999999994,{"$f":"IF($C15=0,0, IF($B15=\"Albendazole for LF\", IF($C15=ALB_MBD!$I$4,ALB_MBD!$U$4,ROUNDUP($C15/200,0)), IF($B15=\"Albendazole for STH (SAC)\", IF($C15=ALB_MBD!$L$4,ALB_MBD!$X$4,ROUNDUP($C15/200,0)), IF($B15=\"Mebendazole (SAC)\", IF($C15=ALB_MBD!$P$4,ALB_MBD!$AA$4,ROUNDUP($C15/150,0)), IF($B15=\"Diethylcarbamazine citrate\", IF($C15=DEC!$J$4,DEC!$M$4,ROUNDUP($C15/1000,0)), IF($B15=\"Praziquantel (SAC)\", IF($C15=PZQ!$O$4,PZQ!$R$4,ROUNDUP($C15/1000,0)), IF($B15=\"Ivermectin\", IF($C15=IVM!$N$4,IVM!$Q$4,$C15/500+0.49),0)))))))","v":8508},8203]
[null,null,0,0,null,0,{"$f":"IF($C16=0,0, IF($B16=\"Albendazole for LF\", IF($C16=ALB_MBD!$I$4,ALB_MBD!$U$4,ROUNDUP($C16/200,0)), IF($B16=\"Albendazole for STH (SAC)\", IF($C16=ALB_MBD!$L$4,ALB_MBD!$X$4,ROUNDUP($C16/200,0)), IF($B16=\"Mebendazole (SAC)\", IF($C16=ALB_MBD!$P$4,ALB_MBD!$AA$4,ROUNDUP($C16/150,0)), IF($B16=\"Diethylcarbamazine citrate\", IF($C16=DEC!$J$4,DEC!$M$4,ROUNDUP($C16/1000,0)), IF($B16=\"Praziquantel (SAC)\", IF($C16=PZQ!$O$4,PZQ!$R$4,ROUNDUP($C16/1000,0)), IF($B16=\"Ivermectin\", IF($C16=IVM!$N$4,IVM!$Q$4,$C16/500+0.49),0)))))))","v":0},0]
[null,null,0,0,null,0,{"$f":"IF($C17=0,0, IF($B17=\"Albendazole for LF\", IF($C17=ALB_MBD!$I$4,ALB_MBD!$U$4,ROUNDUP($C17/200,0)), IF($B17=\"Albendazole for STH (SAC)\", IF($C17=ALB_MBD!$L$4,ALB_MBD!$X$4,ROUNDUP($C17/200,0)), IF($B17=\"Mebendazole (SAC)\", IF($C17=ALB_MBD!$P$4,ALB_MBD!$AA$4,ROUNDUP($C17/150,0)), IF($B17=\"Diethylcarbamazine citrate\", IF($C17=DEC!$J$4,DEC!$M$4,ROUNDUP($C17/1000,0)), IF($B17=\"Praziquantel (SAC)\", IF($C17=PZQ!$O$4,PZQ!$R$4,ROUNDUP($C17/1000,0)), IF($B17=\"Ivermectin\", IF($C17=IVM!$N$4,IVM!$Q$4,$C17/500+0.49),0)))))))","v":0},0]
[]
[null,"Number of people to be treated with donated medicine ( see User Guide for details )"]
[]
[null,"Disease",null,null,null,null,"Round 1","Round 2"]
[null,"Lymphatic filariasis","These figures are estimated only for targeted \nage groups to be treated with donated \nmedicines in areas where treatment for specific disease is required",null,null,null,1518213," "]
[null,"Schistosomiasis",null,null,null,null,389773," "]
[null,"Soil-transmitted helminthiases",null,null,null,null,483885,260259]
[null,null,null,null,null,null," "," "]
[]
[]
[]
[null,"Information on planned PC interventions"]
[]
[null,"PC medicine","Planned date of the \n1st round of PC",null,"Planned date of the \n2nd round of PC",null,"Date by which the medicine \nshould arrive to the national warehouse"]
[null,"Albendazole for LF","May",2023,"November",2023,"January",2023]
[null,"Albendazole for STH","May",2023,"November",2023,"January",2023]
[null,"Praziquantel","May",2023,"November",2023,"January",2023]
[null,"Ivermectin","May",2023,null,null,"January",2023]
[]
[]
[]
[null,"Information on PC medicines for treatment of population not targeted with current donation through WHO"]
[]
[null,"PC medicine","Age group","# of people","# of tablets","Specify source",null,"Status"]
[null,"Praziquantel","Adults",655449,{"$f":"D42*3*2","v":3932694},"WHO",null,"Required"]
[null,"Albendazole for STH","Adults",1034328,1034328,"WHO",null,"Required"]
[]
[]
[]
[]
[]
[]
[]
[]
[]
[null,"Checklist"]
[null,"Submission"]
[null,"What should be submitted?"]
[null,"The supply of the requested medicines should be based on up-to-date epidemiological data, specific usage plans, and capacity for implementation. The following checklist ensures that all necessary forms and information are provided to WHO (in electronic format). "]
[null,"Joint request for selected PC medicines"]
[null,"Joint reporting form"]
[null,"PC epidemiological data reporting form"]
[]
[null,"Availability of funding for implementation in the year for which the medicines are requested"]
[]
[null,"Diseases \ntargeted for implementation","Total treatments","Funding secured for","Source",null,null,"Amount"]
[null,{"$f":"B22","v":"Lymphatic filariasis"},{"$f":"SUM(G22:H22)","v":1518213}]
[null,{"$f":"B23","v":"Schistosomiasis"},{"$f":"SUM(G23:H23)","v":389773},"All","SCI"]
[null,{"$f":"B24","v":"Soil-transmitted helminthiases"},{"$f":"SUM(G24:H24)","v":744144},"All","SCI"]
[null,{"$f":"B25","v":0},{"$f":"SUM(G25:H25)","v":0}]
[]
[null,"Who should fill in the form? "]
[null,"National NTD coordinator should compile all required information needed to complete the request form. In the absence of such a coordinator, specific programme managers should coordinate their respective part. The final single request must be approved by the Ministry of Health."]
[]
[null,"Information on person(s) who has filled in the form"]
[]
[null,"Title ","Name",null,"Phone",null,"Email","Date"]
[null,"MandE Focal Point","Sophia ",null,"255 777 201150",null,"sophymoddy1@gmail.com"]
[null,"NTD/PC Coordinator","Dr Mohammed",null,"255 777 429 203",null,"mohammedsaleh790@hotmail.com"]
[null,"Other","Masoud",null,"255 776 804 445",null,"masoudhmohamed@gmail.com"]
[null,"Other","Ally ",null,"255 767 430 080",null,"alshebby@gmail.com"]
[]
[null,"The WHO recommends that all serious adverse events suspected to be associated with use of PC medicines should be reported in accordance with national Pharmacovigilance guidelines. In the absence of a national Pharmacovigilance system, contact the WHO Neglected Tropical Disease department for guidance."]
[null,"The WHO is committed to facilitate PC medicines donation with a free-of-charge supply of a) albendazole, mebendazole and praziquantel to the MoH’s national warehouse; and b) diethylcarbamazine citrate to the entry port/airport of recipient countries."]
[null,"The institution submitting the present request is responsible for a) arranging the offloading of the medicines from the truck and storing it in the national warehouse and subsequent shipment to the final distribution centres; b) for registering the donated medicine, if required, by the relevant national regulatory authorities; and c) for informing about any changes of their PC campaigns (e.g. postpone of the planned MDA date, replacement of NTD coordinator, etc.)."]
[null,null,"I have read and accept WHO Data Sharing Policy"]
[null,"Name and signature of NTD coordinator \nor Ministry of Health representative",null,"Massoud Hindi Mohamed"]
[null,"Date:"]
[]
[null,"Please complete information on shipment and consignee in the worksheet SHIPMENT. Any additional details related to this Request should be provided in the \"Additional information\" box in the worksheet SHIPMENT."]
[null,"Please send the national request (signed and in electronic format) to the concerned WR with copy to:"]
[null,"WHO headquarters","PC_JointForms@who.int"]
[null,"WHO Regional Office","Regional Advisor for NTD"]
[null,"Mectizan donation program","Dr Yao Sodahlon, email: ysodahlon@taskforce.org"]
[]
[null,"Please note that your request will be reviewed by an independent panel before approval. The information in this form, joint reporting form and PC epidemiological data reporting form are essential for WHO to ensure efficient usage of medicines. As part of its ongoing monitoring and evaluation activities, and to meet its contractual obligations to donors and other partners, WHO and its appointed agents reserve the right to periodically inspect stocks of the medicines at country level."]

{"sheet":"SHIPMENT","index":8,"n_rows":48,"n_cols":8,"rows_kept":48,"cut":false,"hidden":false,"merged":[[32,2,32,4],[32,5,32,7],[29,2,29,4],[29,5,29,7],[30,2,30,4],[30,5,30,7],[31,2,31,4],[31,5,31,7],[26,2,26,4],[26,5,26,7],[27,2,27,4],[27,5,27,7],[28,2,28,4],[28,5,28,7],[23,2,23,4],[23,5,23,7],[21,5,21,7],[16,5,16,7],[17,2,17,4],[12,2,12,4],[12,5,12,7],[13,2,13,4],[13,5,13,7],[14,2,14,4],[14,5,14,7],[9,2,9,4],[9,5,9,7],[10,2,10,4],[10,5,10,7],[11,2,11,4],[11,5,11,7],[6,1,6,7],[7,2,7,4],[7,5,7,7],[8,2,8,4],[8,5,8,7],[15,5,15,7],[20,2,20,4],[18,2,18,4],[16,2,16,4],[47,1,56,7],[45,1,45,7],[37,1,37,6],[38,1,38,5],[40,1,40,7],[41,1,41,6],[39,1,39,6],[42,1,42,6],[43,1,43,7],[25,2,25,4],[25,5,25,7],[24,1,24,7],[34,1,34,7],[36,1,36,7],[0,1,0,7],[1,1,1,7],[2,1,2,5],[17,5,17,7],[18,5,18,7],[19,2,19,4],[19,5,19,7],[21,2,21,4],[3,2,3,5],[4,1,4,7],[22,2,22,4],[22,5,22,7],[15,2,15,4],[20,5,20,7]]}
[]
[null,"Joint request for selected PC medicines v.3.1"]
[]
[null,"Country",{"$f":"IF(INTRO!$E$33<>0,INTRO!$E$33,\" \")","v":"Zanzibar"},null,null,null,"Year",{"$f":"IF(INTRO!$E$35<>0,INTRO!$E$35,\" \")","v":2023}]
[]
[null,"Information on shipment and consignee "]
[]
[null,"Albendazole for LF","Consignee",null,null,"Delivery point / Final recipient\nif different from the consignee"]
[null,"Name","Dr Tigest Ketsela Mengestu",null,null,"Dr Fatma Mrisho"]
[null,"Department/Unit","Neglected Tropical Diseases",null,null,"Principal Secreatary "]
[null,"Organization","World Health Organization - Tanzania",null,null,"Ministry of health Social welfare elderly gender and children "]
[null,"Phone","255 (0) 75884000 /222113005",null,null,"255 (0) 754877739"]
[null,"Fax","255 (0) 222113180 / 2132784"]
[null,"E-mail","ketselat@who.int (and) afwcotz@who.int",null,null,"fmrisho@gmail.com"]
[null,"Mailing address","P .O.BOX 9292 Luthuli Road , Dar- es- salaam",null,null,"Mnazi Mmoja Zanzibar"]
[]
[null,"Praziquantel","Consignee",null,null,"Delivery point / Final recipient\nif different from the consignee"]
[null,"Name","Dr Tigest Ketsela Mengestu",null,null,"Dr Fatma Mrisho"]
[null,"Department/Unit","Neglected Tropical Diseases",null,null,"Principal Secreatary "]
[null,"Organization","World Health Organization - Tanzania",null,null,"Ministry of health Social welfare elderly gender and children "]
[null,"Phone","255 (0) 75884000 /222113005",null,null,"255 (0) 754877739"]
[null,"Fax","255 (0) 222113180 / 2132784"]
[null,"E-mail","ketselat@who.int (and) afwcotz@who.int",null,null,"fmrisho@gmail.com"]
[null,"Mailing address","P .O.BOX 9292 Luthuli Road , Dar- es- salaam",null,null,"Mnazi Mmoja Zanzibar"]
[]
[null,"Ivermectin","Consignee",null,null,"Delivery point / Final recipient\nif different from the consignee"]
[null,"Name","Dr Fatma Mrisho",null,null,"Dr Fatma Mrisho"]
[null,"Department/Unit","Principal Secreatary ",null,null,"Principal Secreatary "]
[null,"Organization","Ministry of health Social welfare elderly gender and children ",null,null,"Ministry of health Social welfare elderly gender and children "]
[null,"Phone","255 (0) 754877739",null,null,"255 (0) 754877739"]
[null,"Fax"]
[null,"E-mail","fmrisho@gmail.com",null,null,"fmrisho@gmail.com"]
[null,"Mailing address","Mnazi Mmoja Zanzibar",null,null,"Mnazi Mmoja Zanzibar"]
[]
[]
[null,"Information on import requirements"]
[]
[null,"Is the Import Permit required?",null,null,null,null,null,"Yes"]
[null,"How long does it take to obtain the Import Permit?",null,null,null,null,"one","Weeks"]
[null,"Do you require any documents to be submitted together with the Import Permit application?",null,null,null,null,null,"Yes"]
[null,"Tax Exemption from Revenue Authority"]
[null,"Does the consignee have to get customs clearance before the shipment can proceed?",null,null,null,null,null,"No"]
[null,"Is there any additional information may be helpful in ensuring timely clearance and delivery of medicines to your country? ",null,null,null,null,null,"No"]
[null,"Yes, Invoice and Air Way Bill, "]
[]
[null,"Additional information"]
[]
[null,"Zanzibar is Implementing Schistosomiasis Elimination program whereby PZQ is distributed through community approach twice a year (May and November) in ten districts to both Adults and Children. \nIVM and ALB  are used for LF Elimination once a year (May) for the whole Population above five years in all eleven endemic districts.     \nALB is used for STH Control and is distributed twice a year, co-implemented  during Schistosomiasis  and LF elimination MDAs.  \nIn 2023 we  will continue to conduct MDA biannually, the first round in May 2023 three drugs will be administered (ALB, IVM and PZQ) and second round November 2023 two drugs will be administered (ALB and PZQ).  \nALB for STH for two rounds of MDA and one being co-implemented with LF (SAC 483,885 and Adult 1,034,328) we will need 1,518,213 tablets. \nALB for LF (1,518,213 SAC and Adult) 1,518,213 tablets will be needed.\nIVM for LF (1,518,213 SAC and Adult) we will need 4,250,996 tablets.\nPZQ for Schisto (470,296 SAC and 655,449 Adult for two rounds) 3,143,000 tablets will be needed."]

{"sheet":"DATA_POLICY","index":9,"n_rows":39,"n_cols":8,"rows_kept":39,"cut":false,"hidden":true,"merged":[[55,1,55,2],[0,1,0,5],[1,1,1,7],[3,3,3,5],[6,1,6,7],[8,1,12,7],[13,1,16,7],[17,1,21,7],[22,1,25,7],[26,2,36,7],[38,1,45,7]]}
[]
[null,"Joint request for selected PC medicines v.3.1"]
[]
[null,"Country",null,{"$f":"IF(INTRO!$E$33<>0,INTRO!$E$33,\" \")","v":"Zanzibar"},null,null,"Year",{"$f":"IF(INTRO!$E$35<>0,INTRO!$E$35,\" \")","v":2023}]
[]
[]
[null,"WHO Data Sharing Policy statement"]
[]
[null,"Data are the basis for all sound public health actions and the benefits of data sharing are widely recognized, including scientific and public health benefits. Whenever possible, WHO wishes to promote the sharing of health data, including but not restricted to surveillance and epidemiological data.  "]
[]
[]
[]
[]
[null,{"$f":"\"In this connection, and without prejudice to information sharing and publication pursuant to legally binding instruments, by providing data to WHO, the Ministry of Health of \" & D4 & \":\"","v":"In this connection, and without prejudice to information sharing and publication pursuant to legally binding instruments, by providing data to WHO, the Ministry of Health of Zanzibar:"}]
[]
[]
[]
[null,"Confirms that all data to be supplied to WHO hereunder have been collected in accordance with applicable national laws, including data protection laws aimed at protecting the confidentiality of identifiable persons;"]
[]
[]
[]
[]
[null,{"$f":"\"Agrees that WHO shall be entitled, subject always to measures to ensure the ethical and secure use of the data, and subject always to an appropriate acknowledgement of \"&D4&\":\"","v":"Agrees that WHO shall be entitled, subject always to measures to ensure the ethical and secure use of the data, and subject always to an appropriate acknowledgement of Zanzibar:"}]
[]
[]
[]
[null,null,"to publish the data, stripped of any personal identifiers and make the Data available to any interested party on request (to the extent they have not, or not yet, been published by WHO) on terms that allow non-commercial, not-for-profit use of the Data for public health purposes (provided always that publication of the Data shall remain under the control of WHO); \nto use, compile, aggregate, evaluate and analyse the Data and publish and disseminate the results thereof in conjunction with WHO’s work and in accordance with the Organization’s policies and practices."]
[]
[]
[]
[]
[]
[]
[]
[]
[]
[]
[]
[null,{"$f":"CONCATENATE(\"Except where data sharing and publication is required under legally binding instruments (IHR, WHO Nomenclature Regulations 1967, etc.), the Ministry of Health of \", D4,\" may in respect of certain data opt out of (any part of) the above,\" & \" by notifying WHO thereof in writing at the following address, provided that any such notification shall clearly identify the data in question and clearly indicate the scope of the opt-out (in reference to the  above), \" & \"and provided that specific reasons shall be given for the opt out.\")","v":"Except where data sharing and publication is required under legally binding instruments (IHR, WHO Nomenclature Regulations 1967, etc.), the Ministry of Health of Zanzibar may in respect of certain data opt out of (any part of) the above, by notifying WHO thereof in writing at the following address, provided that any such notification shall clearly identify the data in question and clearly indicate the scope of the opt-out (in reference to the  above), and provided that specific reasons shall be given for the opt out."}]